Workbook

Sheet Cover
A1: I. Nature of the inspection
E3: Transaction No.:
A6: II. Details of the machine
A8: Designation
A9: Type
A10: Serial No.
A11: Year of construction
A12: Manufacturer / Supplier
A13: Location
A15: III. Scope of the inspection:
A17: All safety related functions and components must satisfy the requirements of the FSS 5 General Machine Safety Checklist and local relevant standards as a minimum requirement. NOTE: If machines are used in conjunction with other machines or equipment, a supplementary safety check must be carried out with reference to the checklist for concatenated systems (Attachment 2).
A19: IV. Results of the inspection
B21: The machine/apparatus/system complies with the current FSS 5 checklist
B23: The machine / system does not meet every requirement of the FSS 5 checklist. However, the machine / system may be used as the functions concerned are not critical in terms of safety.
B25: The machine/apparatus/system does not comply with the current FSS 5 checklist.
B27: The machine/apparatus/system will be upgraded.
B28: Initial cost estimate: | D28: Date:
B29: Renewed inspection required!
B31: The machine/apparatus/system will be removed from service
B32: on: | D32: at the latest.
B33: Technical and/or organizational measures as laid down in the appendix will be implemented to ensure safe operation up to this date.
B35: Date of next scheduled inspection:
A38: V. Distribution list
C41: Name | D41: Function
A43: Person responsible for corrective action and improvements:
A45: Person responsible for documentation, filing and archiving:
A50: VI. Inspection conducted by:
B52: Mechanical part | C52: Electrical part | D52: Owner | E52: Other
A53: Name
A54: Function
A55: Date
A56: Signature

Sheet Summary
A2: Summary FSS 5 - Check
A4: internal machine/system designation | C4: =IF(Cover!B8="","",Cover!B8) -> 
A6: Transaction No.: | C6: =IF(Cover!E4="","",Cover!E4) -> 
A8: Chapter | B8: Assessment | C8: Description
A9: 1 | B9: ='Overview of measures'!G7 -> 0.2083333333 | C9: Documentation
A10: 2 | B10: ='Overview of measures'!G35 -> 0.5714285714 | C10: Use and installation
A11: 3 | B11: ='Overview of measures'!G46 -> 0.4905660377 | C11: Control systems and command facilities (operator control elements)
A12: 4 | B12: ='Overview of measures'!G114 -> 0.7142857143 | C12: Protection against mechanical hazards
A13: 5 | B13: ='Overview of measures'!G160 -> 0.8333333333 | C13: Other hazards
A14: 6 | B14: ='Overview of measures'!G173 -> 1 | C14: Setting up / Maintenance / Service
A15: 7 | B15: ='Overview of measures'!G195 -> 0.4545454545 | C15: Risks associated with electrical energy
A16: 8 | B16: ='Overview of measures'!#REF! ->  | C16: Ergonomie
B17: =SUBTOTAL(101,Summary!$B$9:$B$15) -> 0.6103560635
C19: [%] TOTAL RESULT incl. execution of the measures
B25: =SUM(B26:B28) -> 151 | C25: Questions from 151 answer
A26: =B26/$B$25 -> 0.5562913907 | B26: ='Overview of measures'!B217 -> 84 | C26: OK
A27: =B27/$B$25 -> 0 | B27: ='Overview of measures'!B218 -> 0 | C27: NR (not relevant)
A28: =B28/$B$25 -> 0.4437086093 | B28: ='Overview of measures'!B216 -> 67 | C28: NOK
A29: =B29/B28 -> 0.0447761194 | B29: ='Overview of measures'!L6 -> 3 | C29: sicherheitsrelevanten Punkte
B30: =B28-B29 -> 64
A49: ERGEBNIS DER PRÜFUNG
A50: =IF(#REF!="X",#REF!,(IF(#REF!="X",#REF!,(IF(#REF!="X",#REF!,0))))) -> 

Sheet Overview of measures
A2: Overview of measures FSS 5- Check | H2: 0 | I2: % enclosed 25 % design/conceptual design 50 % start implementation 75 % implemented 100 % measures implemented / effictiveness checked
H3: 0.25
A4: internal machine/system designation | C4: =IF(Cover!B8="","",Cover!B8) ->  | G4: NR = not relevant OK = in order / fine NOK = not in order | H4: 0.5
A5: Transaction No.: | C5: =IF(Cover!E4="","",Cover!E4) ->  | H5: 0.75
H6: 1 | L6: =SUM(L9:L211) -> 3
A7: 1. Documentation | D7: =IF(B33>0,"answered incompletely","answer completely") -> answer completely | G7: =AVERAGE('Overview of measures'!$G$9:$G$32) -> 0.2083333333
A8: Question No. | B8: Assessment | C8: Measures | D8: Who | E8: Date | F8: Effectiveness check | G8: % closed | I8: NR = not relevant [100%] OK = in order / fine [100 %] NOK = not in order [0 %] blank = missing answer [0 %] | J8: T1 | K8: BW | L8: Rel
A9: 1.1 | B9: ='1. Documentation'!J2 -> OK | C9: =IF('1. Documentation'!J2="NOK",'1. Documentation'!I2,"none") -> none | G9: =IF('Overview of measures'!$B9="OK",1,IF('Overview of measures'!$B9="NR",1,0)) -> 1 | J9: =IF(B9="NOK",1,0) -> 0 | K9: =IF(J9=FALSE,1,0) -> 0 | L9: =IF(AND('1. Documentation'!E2="NOK",'1. Documentation'!B2="J"),1,0) -> 0
A10: 1.2 | B10: ='1. Documentation'!J3 -> NOK | C10: =IF('1. Documentation'!J3="NOK",'1. Documentation'!I3,"none") -> 0 | G10: =IF('Overview of measures'!$B10="OK",1,IF('Overview of measures'!$B10="NR",1,0)) -> 0 | J10: =IF(B10="NOK",1,0) -> 1 | K10: =IF(J10=FALSE,1,0) -> 0 | L10: =IF(AND('1. Documentation'!E3="NOK",'1. Documentation'!B3="J"),1,0) -> 0
A11: 1.3 | B11: ='1. Documentation'!J4 -> OK | C11: =IF('1. Documentation'!J4="NOK",'1. Documentation'!I4,"none") -> none | G11: =IF('Overview of measures'!$B11="OK",1,IF('Overview of measures'!$B11="NR",1,0)) -> 1 | J11: 0 | K11: 0 | L11: =IF(AND('1. Documentation'!E4="NOK",'1. Documentation'!B4="J"),1,0) -> 0
A12: 1.4 | B12: ='1. Documentation'!J5 -> NOK | C12: =IF('1. Documentation'!J5="NOK",'1. Documentation'!I5,"none") -> 0 | G12: =IF('Overview of measures'!$B12="OK",1,IF('Overview of measures'!$B12="NR",1,0)) -> 0 | J12: 1 | K12: 0 | L12: =IF(AND('1. Documentation'!E5="NOK",'1. Documentation'!B5="J"),1,0) -> 1
A13: 1.5 | B13: ='1. Documentation'!J6 -> NOK | C13: =IF('1. Documentation'!J6="NOK",'1. Documentation'!I6,"none") -> 0 | G13: =IF('Overview of measures'!$B13="OK",1,IF('Overview of measures'!$B13="NR",1,0)) -> 0 | J13: 1 | K13: 0 | L13: =IF(AND('1. Documentation'!E6="NOK",'1. Documentation'!B6="J"),1,0) -> 1
A14: 1.6 | B14: ='1. Documentation'!J7 -> NOK | C14: =IF('1. Documentation'!J7="NOK",'1. Documentation'!I7,"none") -> 0 | G14: =IF('Overview of measures'!$B14="OK",1,IF('Overview of measures'!$B14="NR",1,0)) -> 0 | J14: 1 | K14: 0 | L14: =IF(AND('1. Documentation'!E7="NOK",'1. Documentation'!B7="J"),1,0) -> 0
A15: 1.7 | B15: ='1. Documentation'!J8 -> NOK | C15: =IF('1. Documentation'!J8="NOK",'1. Documentation'!I8,"none") -> 0 | G15: =IF('Overview of measures'!$B15="OK",1,IF('Overview of measures'!$B15="NR",1,0)) -> 0 | J15: 1 | K15: 0 | L15: =IF(AND('1. Documentation'!E8="NOK",'1. Documentation'!B8="J"),1,0) -> 0
A16: 1.8 | B16: ='1. Documentation'!J9 -> NOK | C16: =IF('1. Documentation'!J9="NOK",'1. Documentation'!I9,"none") -> 0 | G16: =IF('Overview of measures'!$B16="OK",1,IF('Overview of measures'!$B16="NR",1,0)) -> 0 | J16: 1 | K16: 0 | L16: =IF(AND('1. Documentation'!E9="NOK",'1. Documentation'!B9="J"),1,0) -> 0
A17: 1.9 | B17: ='1. Documentation'!J10 -> NOK | C17: =IF('1. Documentation'!J10="NOK",'1. Documentation'!I10,"none") -> 0 | G17: =IF('Overview of measures'!$B17="OK",1,IF('Overview of measures'!$B17="NR",1,0)) -> 0 | J17: 1 | K17: 0 | L17: =IF(AND('1. Documentation'!E10="NOK",'1. Documentation'!B10="J"),1,0) -> 1
A18: 1.10 | B18: ='1. Documentation'!J11 -> NOK | C18: =IF('1. Documentation'!J11="NOK",'1. Documentation'!I11,"none") -> 0 | G18: =IF('Overview of measures'!$B18="OK",1,IF('Overview of measures'!$B18="NR",1,0)) -> 0 | J18: 1 | K18: 0 | L18: =IF(AND('1. Documentation'!E11="NOK",'1. Documentation'!B11="J"),1,0) -> 0
A19: 1.11 | B19: ='1. Documentation'!J12 -> NOK | C19: =IF('1. Documentation'!J12="NOK",'1. Documentation'!I12,"none") -> 0 | G19: =IF('Overview of measures'!$B19="OK",1,IF('Overview of measures'!$B19="NR",1,0)) -> 0 | J19: 1 | K19: 0 | L19: =IF(AND('1. Documentation'!E12="NOK",'1. Documentation'!B12="J"),1,0) -> 0
A20: 1.12 | B20: ='1. Documentation'!J13 -> NOK | C20: =IF('1. Documentation'!J13="NOK",'1. Documentation'!I13,"none") -> 0 | G20: =IF('Overview of measures'!$B20="OK",1,IF('Overview of measures'!$B20="NR",1,0)) -> 0 | J20: 1 | K20: 0 | L20: =IF(AND('1. Documentation'!E13="NOK",'1. Documentation'!B13="J"),1,0) -> 0
A21: 1.13 | B21: ='1. Documentation'!J14 -> NOK | C21: =IF('1. Documentation'!J14="NOK",'1. Documentation'!I14,"none") -> 0 | G21: =IF('Overview of measures'!$B21="OK",1,IF('Overview of measures'!$B21="NR",1,0)) -> 0 | J21: 1 | K21: 0 | L21: =IF(AND('1. Documentation'!E14="NOK",'1. Documentation'!B14="J"),1,0) -> 0
A22: 1.14 | B22: ='1. Documentation'!J15 -> OK | C22: =IF('1. Documentation'!J15="NOK",'1. Documentation'!I15,"none") -> none | G22: =IF('Overview of measures'!$B22="OK",1,IF('Overview of measures'!$B22="NR",1,0)) -> 1
A23: 1.15 | B23: ='1. Documentation'!J16 -> NOK | C23: =IF('1. Documentation'!J16="NOK",'1. Documentation'!I16,"none") -> 0 | G23: =IF('Overview of measures'!$B23="OK",1,IF('Overview of measures'!$B23="NR",1,0)) -> 0 | J23: 1 | K23: 0 | L23: =IF(AND('1. Documentation'!E16="NOK",'1. Documentation'!B16="J"),1,0) -> 0
A24: 1.16 | B24: ='1. Documentation'!J17 -> NOK | C24: =IF('1. Documentation'!J17="NOK",'1. Documentation'!I17,"none") -> 0 | G24: =IF('Overview of measures'!$B24="OK",1,IF('Overview of measures'!$B24="NR",1,0)) -> 0 | J24: 1 | K24: 0 | L24: =IF(AND('1. Documentation'!E17="NOK",'1. Documentation'!B17="J"),1,0) -> 0
A25: 1.17 | B25: ='1. Documentation'!J18 -> OK | C25: =IF('1. Documentation'!J18="NOK",'1. Documentation'!I18,"none") -> none | G25: =IF('Overview of measures'!$B25="OK",1,IF('Overview of measures'!$B25="NR",1,0)) -> 1 | J25: 0 | K25: 0 | L25: =IF(AND('1. Documentation'!E18="NOK",'1. Documentation'!B18="J"),1,0) -> 0
A26: 1.18 | B26: ='1. Documentation'!J21 -> NOK | C26: =IF('1. Documentation'!J21="NOK",'1. Documentation'!I21,"none") -> 0 | G26: =IF('Overview of measures'!$B26="OK",1,IF('Overview of measures'!$B26="NR",1,0)) -> 0
A27: 1.19 | B27: ='1. Documentation'!J22 -> NOK | C27: =IF('1. Documentation'!J22="NOK",'1. Documentation'!I22,"none") -> 0 | G27: =IF('Overview of measures'!$B27="OK",1,IF('Overview of measures'!$B27="NR",1,0)) -> 0
A28: 1.20 | B28: ='1. Documentation'!J23 -> NOK | C28: =IF('1. Documentation'!J23="NOK",'1. Documentation'!I23,"none") -> 0 | G28: =IF('Overview of measures'!$B28="OK",1,IF('Overview of measures'!$B28="NR",1,0)) -> 0
A29: 1.21 | B29: ='1. Documentation'!J24 -> NOK | C29: =IF('1. Documentation'!J24="NOK",'1. Documentation'!I24,"none") -> 0 | G29: =IF('Overview of measures'!$B29="OK",1,IF('Overview of measures'!$B29="NR",1,0)) -> 0
A30: 1.22 | B30: ='1. Documentation'!J25 -> NOK | C30: =IF('1. Documentation'!J25="NOK",'1. Documentation'!I25,"none") -> 0 | G30: =IF('Overview of measures'!$B30="OK",1,IF('Overview of measures'!$B30="NR",1,0)) -> 0
A31: 1.23 | B31: ='1. Documentation'!J26 -> NOK | C31: =IF('1. Documentation'!J26="NOK",'1. Documentation'!I26,"none") -> 0 | G31: =IF('Overview of measures'!$B31="OK",1,IF('Overview of measures'!$B31="NR",1,0)) -> 0
A32: 1.24 | B32: ='1. Documentation'!J27 -> OK | C32: =IF('1. Documentation'!J27="NOK",'1. Documentation'!I27,"none") -> none | G32: =IF('Overview of measures'!$B32="OK",1,IF('Overview of measures'!$B32="NR",1,0)) -> 1
B33: =COUNTIFS(B9:B25,"blank") -> 0 | G33: =SUBTOTAL(101,'Overview of measures'!$G$9:$G$32) -> 0.2083333333 | J33: 0 | K33: 0 | L33: =IF(AND('1. Documentation'!E19="NOK",'1. Documentation'!B19="J"),1,0) -> 0
J34: 0 | K34: 0 | L34: =IF(AND('1. Documentation'!E20="NOK",'1. Documentation'!B20="J"),1,0) -> 0
A35: 2. Use / Installation | D35: =IF(B44>0,"answered incompletely","answer completely") -> answer completely | G35: =AVERAGE('Overview of measures'!$G$37:$G$43) -> 0.5714285714 | J35: 1 | K35: 0 | L35: =IF(AND('1. Documentation'!E21="NOK",'1. Documentation'!B21="J"),1,0) -> 0
A36: Question No. | B36: Assessment | C36: Measures | D36: Who | E36: Date | F36: Effectiveness check | G36: % closed | J36: 0 | K36: 0 | L36: =IF(AND('1. Documentation'!E22="NOK",'1. Documentation'!B22="J"),1,0) -> 0
A37: 2.1 | B37: ='2. Use and installation'!J2 -> OK | C37: =IF('2. Use and installation'!J2="NOK",'2. Use and installation'!I2,"none") -> none | G37: =IF('Overview of measures'!$B37="OK",1,IF('Overview of measures'!$B37="NR",1,0)) -> 1 | J37: 0 | K37: 0 | L37: =IF(AND('1. Documentation'!E23="NOK",'1. Documentation'!B23="J"),1,0) -> 0
A38: 2.2 | B38: ='2. Use and installation'!J3 -> NOK | C38: =IF('2. Use and installation'!J3="NOK",'2. Use and installation'!I3,"none") -> 0 | G38: =IF('Overview of measures'!$B38="OK",1,IF('Overview of measures'!$B38="NR",1,0)) -> 0 | J38: 1 | K38: 0 | L38: =IF(AND('1. Documentation'!E24="NOK",'1. Documentation'!B24="J"),1,0) -> 0
A39: 2.3 | B39: ='2. Use and installation'!J4 -> OK | C39: =IF('2. Use and installation'!J4="NOK",'2. Use and installation'!I4,"none") -> none | G39: =IF('Overview of measures'!$B39="OK",1,IF('Overview of measures'!$B39="NR",1,0)) -> 1 | J39: 0 | K39: 0 | L39: =IF(AND('1. Documentation'!E25="NOK",'1. Documentation'!B25="J"),1,0) -> 0
A40: 2.4 | B40: ='2. Use and installation'!J5 -> NOK | C40: =IF('2. Use and installation'!J5="NOK",'2. Use and installation'!I5,"none") -> 0 | G40: =IF('Overview of measures'!$B40="OK",1,IF('Overview of measures'!$B40="NR",1,0)) -> 0 | J40: 1 | K40: 0 | L40: =IF(AND('1. Documentation'!E26="NOK",'1. Documentation'!B26="J"),1,0) -> 0
A41: 2.5 | B41: ='2. Use and installation'!J6 -> OK | C41: =IF('2. Use and installation'!J6="NOK",'2. Use and installation'!I6,"none") -> none | G41: =IF('Overview of measures'!$B41="OK",1,IF('Overview of measures'!$B41="NR",1,0)) -> 1 | J41: 0 | K41: 0 | L41: =IF(AND('1. Documentation'!E27="NOK",'1. Documentation'!B27="J"),1,0) -> 0
A42: 2.6 | B42: ='2. Use and installation'!J7 -> NOK | C42: =IF('2. Use and installation'!J7="NOK",'2. Use and installation'!I7,"none") -> 0 | G42: =IF('Overview of measures'!$B42="OK",1,IF('Overview of measures'!$B42="NR",1,0)) -> 0 | J42: 1 | K42: 0 | L42: =IF(AND('1. Documentation'!E28="NOK",'1. Documentation'!B28="J"),1,0) -> 0
A43: 2.7 | B43: ='2. Use and installation'!J8 -> OK | C43: =IF('2. Use and installation'!J8="NOK",'2. Use and installation'!I8,"none") -> none | G43: =IF('Overview of measures'!$B43="OK",1,IF('Overview of measures'!$B43="NR",1,0)) -> 1 | J43: 0 | K43: 0 | L43: =IF(AND('1. Documentation'!E29="NOK",'1. Documentation'!B29="J"),1,0) -> 0
B44: =COUNTIFS(B37:B43,"blank") -> 0 | G44: =SUBTOTAL(101,'Overview of measures'!$G$37:$G$43) -> 0.5714285714 | J44: 0 | K44: 0 | L44: =IF(AND('1. Documentation'!E30="NOK",'1. Documentation'!B30="J"),1,0) -> 0
J45: 0 | K45: 0 | L45: =IF(AND('1. Documentation'!E31="NOK",'1. Documentation'!B31="J"),1,0) -> 0
A46: 3. Control systems and command facilities (operator control elements) | D46: =IF(B112>0,"answered incompletely","answer completely") -> answer completely | G46: =AVERAGE('Overview of measures'!$G$48:$G$111) -> 0.4905660377 | J46: 1 | K46: 0 | L46: =IF(AND('1. Documentation'!E32="NOK",'1. Documentation'!B32="J"),1,0) -> 0
A47: Question No. | B47: Assessment | C47: Measures | D47: Who | E47: Date | F47: Effectiveness check | G47: % closed | J47: 0 | K47: 0 | L47: =IF(AND('1. Documentation'!E33="NOK",'1. Documentation'!B33="J"),1,0) -> 0
A48: 3.1 | B48: ='3. Control syst. + command'!J2 -> NOK | C48: =IF('3. Control syst. + command'!J2="NOK",'3. Control syst. + command'!I2,"none") -> 0 | G48: =IF('Overview of measures'!$B48="OK",1,IF('Overview of measures'!$B48="NR",1,0)) -> 0 | J48: 1 | K48: 0 | L48: =IF(AND('1. Documentation'!E34="NOK",'1. Documentation'!B34="J"),1,0) -> 0
A49: 3.2 | B49: ='3. Control syst. + command'!J3 -> OK | C49: =IF('3. Control syst. + command'!J3="NOK",'3. Control syst. + command'!I3,"none") -> none | G49: =IF('Overview of measures'!$B49="OK",1,IF('Overview of measures'!$B49="NR",1,0)) -> 1 | J49: 0 | K49: 0 | L49: =IF(AND('1. Documentation'!E35="NOK",'1. Documentation'!B35="J"),1,0) -> 0
A50: 3.3 | B50: ='3. Control syst. + command'!J4 -> NOK | C50: =IF('3. Control syst. + command'!J4="NOK",'3. Control syst. + command'!I4,"none") -> 0 | G50: =IF('Overview of measures'!$B50="OK",1,IF('Overview of measures'!$B50="NR",1,0)) -> 0 | J50: 1 | K50: 0 | L50: =IF(AND('1. Documentation'!E36="NOK",'1. Documentation'!B36="J"),1,0) -> 0
A51: 3.4 | B51: ='3. Control syst. + command'!J5 -> OK | C51: =IF('3. Control syst. + command'!J5="NOK",'3. Control syst. + command'!I5,"none") -> none | G51: =IF('Overview of measures'!$B51="OK",1,IF('Overview of measures'!$B51="NR",1,0)) -> 1 | J51: 0 | K51: 0 | L51: =IF(AND('1. Documentation'!E37="NOK",'1. Documentation'!B37="J"),1,0) -> 0
A52: 3.5 | B52: ='3. Control syst. + command'!J6 -> NOK | C52: =IF('3. Control syst. + command'!J6="NOK",'3. Control syst. + command'!I6,"none") -> 0 | G52: =IF('Overview of measures'!$B52="OK",1,IF('Overview of measures'!$B52="NR",1,0)) -> 0 | J52: 1 | K52: 0 | L52: =IF(AND('1. Documentation'!E38="NOK",'1. Documentation'!B38="J"),1,0) -> 0
A53: 3.6 | B53: ='3. Control syst. + command'!J7 -> OK | C53: =IF('3. Control syst. + command'!J7="NOK",'3. Control syst. + command'!I7,"none") -> none | G53: =IF('Overview of measures'!$B53="OK",1,IF('Overview of measures'!$B53="NR",1,0)) -> 1 | J53: 0 | K53: 0 | L53: =IF(AND('1. Documentation'!E39="NOK",'1. Documentation'!B39="J"),1,0) -> 0
A54: Command facilities | J54: 0 | K54: 0 | L54: =IF(AND('1. Documentation'!E40="NOK",'1. Documentation'!B40="J"),1,0) -> 0
A55: 3.7 | B55: ='3. Control syst. + command'!J9 -> NOK | C55: =IF('3. Control syst. + command'!J9="NOK",'3. Control syst. + command'!I9,"none") -> 0 | G55: =IF('Overview of measures'!$B55="OK",1,IF('Overview of measures'!$B55="NR",1,0)) -> 0 | J55: 1 | K55: 0 | L55: =IF(AND('1. Documentation'!E41="NOK",'1. Documentation'!B41="J"),1,0) -> 0
A56: 3.8 | B56: ='3. Control syst. + command'!J10 -> OK | C56: =IF('3. Control syst. + command'!J10="NOK",'3. Control syst. + command'!I10,"none") -> none | G56: =IF('Overview of measures'!$B56="OK",1,IF('Overview of measures'!$B56="NR",1,0)) -> 1 | J56: 0 | K56: 0 | L56: =IF(AND('1. Documentation'!E42="NOK",'1. Documentation'!B42="J"),1,0) -> 0
A57: 3.9 | B57: ='3. Control syst. + command'!J11 -> NOK | C57: =IF('3. Control syst. + command'!J11="NOK",'3. Control syst. + command'!I11,"none") -> 0 | G57: =IF('Overview of measures'!$B57="OK",1,IF('Overview of measures'!$B57="NR",1,0)) -> 0 | J57: 1 | K57: 0 | L57: =IF(AND('1. Documentation'!E43="NOK",'1. Documentation'!B43="J"),1,0) -> 0
A58: 3.10 | B58: ='3. Control syst. + command'!J12 -> OK | C58: =IF('3. Control syst. + command'!J12="NOK",'3. Control syst. + command'!I12,"none") -> none | G58: =IF('Overview of measures'!$B58="OK",1,IF('Overview of measures'!$B58="NR",1,0)) -> 1 | J58: 0 | K58: 0 | L58: =IF(AND('1. Documentation'!E44="NOK",'1. Documentation'!B44="J"),1,0) -> 0
A59: 3.11 | B59: ='3. Control syst. + command'!J13 -> NOK | C59: =IF('3. Control syst. + command'!J13="NOK",'3. Control syst. + command'!I13,"none") -> 0 | G59: =IF('Overview of measures'!$B59="OK",1,IF('Overview of measures'!$B59="NR",1,0)) -> 0 | J59: 1 | K59: 0 | L59: =IF(AND('1. Documentation'!E45="NOK",'1. Documentation'!B45="J"),1,0) -> 0
A60: 3.12 | B60: ='3. Control syst. + command'!J14 -> OK | C60: =IF('3. Control syst. + command'!J14="NOK",'3. Control syst. + command'!I14,"none") -> none | G60: =IF('Overview of measures'!$B60="OK",1,IF('Overview of measures'!$B60="NR",1,0)) -> 1 | J60: 0 | K60: 0 | L60: =IF(AND('1. Documentation'!E46="NOK",'1. Documentation'!B46="J"),1,0) -> 0
A61: 3.13 | B61: ='3. Control syst. + command'!J15 -> NOK | C61: =IF('3. Control syst. + command'!J15="NOK",'3. Control syst. + command'!I15,"none") -> 0 | G61: =IF('Overview of measures'!$B61="OK",1,IF('Overview of measures'!$B61="NR",1,0)) -> 0 | J61: 1 | K61: 0 | L61: =IF(AND('1. Documentation'!E47="NOK",'1. Documentation'!B47="J"),1,0) -> 0
A62: 3.14 | B62: ='3. Control syst. + command'!J16 -> OK | C62: =IF('3. Control syst. + command'!J16="NOK",'3. Control syst. + command'!I16,"none") -> none | G62: =IF('Overview of measures'!$B62="OK",1,IF('Overview of measures'!$B62="NR",1,0)) -> 1 | J62: 0 | K62: 0 | L62: =IF(AND('1. Documentation'!E48="NOK",'1. Documentation'!B48="J"),1,0) -> 0
A63: 3.15 | B63: ='3. Control syst. + command'!J17 -> NOK | C63: =IF('3. Control syst. + command'!J17="NOK",'3. Control syst. + command'!I17,"none") -> 0 | G63: =IF('Overview of measures'!$B63="OK",1,IF('Overview of measures'!$B63="NR",1,0)) -> 0 | J63: 1 | K63: 0 | L63: =IF(AND('1. Documentation'!E49="NOK",'1. Documentation'!B49="J"),1,0) -> 0
A64: 3.16 | B64: ='3. Control syst. + command'!J18 -> OK | C64: =IF('3. Control syst. + command'!J18="NOK",'3. Control syst. + command'!I18,"none") -> none | G64: =IF('Overview of measures'!$B64="OK",1,IF('Overview of measures'!$B64="NR",1,0)) -> 1 | J64: 0 | K64: 0 | L64: =IF(AND('1. Documentation'!E50="NOK",'1. Documentation'!B50="J"),1,0) -> 0
A65: Start-up (power-up, switch-on, etc.) | J65: 0 | K65: 0 | L65: =IF(AND('1. Documentation'!E51="NOK",'1. Documentation'!B51="J"),1,0) -> 0
A66: 3.17 | B66: ='3. Control syst. + command'!J20 -> NOK | C66: =IF('3. Control syst. + command'!J20="NOK",'3. Control syst. + command'!I20,"none") -> 0 | G66: =IF('Overview of measures'!$B66="OK",1,IF('Overview of measures'!$B66="NR",1,0)) -> 0 | J66: 1 | K66: 0 | L66: =IF(AND('1. Documentation'!E52="NOK",'1. Documentation'!B52="J"),1,0) -> 0
A67: 3.18 | B67: ='3. Control syst. + command'!J21 -> OK | C67: =IF('3. Control syst. + command'!J21="NOK",'3. Control syst. + command'!I21,"none") -> none | G67: =IF('Overview of measures'!$B67="OK",1,IF('Overview of measures'!$B67="NR",1,0)) -> 1 | J67: 0 | K67: 0 | L67: =IF(AND('1. Documentation'!E53="NOK",'1. Documentation'!B53="J"),1,0) -> 0
A68: Shutdown (power-down, switch-off) | J68: 0 | K68: 0 | L68: =IF(AND('1. Documentation'!E54="NOK",'1. Documentation'!B54="J"),1,0) -> 0
A69: 3.19 | B69: ='3. Control syst. + command'!J23 -> NOK | C69: =IF('3. Control syst. + command'!J23="NOK",'3. Control syst. + command'!I23,"none") -> 0 | G69: =IF('Overview of measures'!$B69="OK",1,IF('Overview of measures'!$B69="NR",1,0)) -> 0 | J69: 1 | K69: 0 | L69: =IF(AND('1. Documentation'!E55="NOK",'1. Documentation'!B55="J"),1,0) -> 0
A70: 3.20 | B70: ='3. Control syst. + command'!J24 -> OK | C70: =IF('3. Control syst. + command'!J24="NOK",'3. Control syst. + command'!I24,"none") -> none | G70: =IF('Overview of measures'!$B70="OK",1,IF('Overview of measures'!$B70="NR",1,0)) -> 1 | J70: 0 | K70: 0 | L70: =IF(AND('1. Documentation'!E56="NOK",'1. Documentation'!B56="J"),1,0) -> 0
A71: 3.21 | B71: ='3. Control syst. + command'!J25 -> NOK | C71: =IF('3. Control syst. + command'!J25="NOK",'3. Control syst. + command'!I25,"none") -> 0 | G71: =IF('Overview of measures'!$B71="OK",1,IF('Overview of measures'!$B71="NR",1,0)) -> 0 | J71: 1 | K71: 0 | L71: =IF(AND('1. Documentation'!E57="NOK",'1. Documentation'!B57="J"),1,0) -> 0
A72: 3.22 | B72: ='3. Control syst. + command'!J26 -> OK | C72: =IF('3. Control syst. + command'!J26="NOK",'3. Control syst. + command'!I26,"none") -> none | G72: =IF('Overview of measures'!$B72="OK",1,IF('Overview of measures'!$B72="NR",1,0)) -> 1 | J72: 0 | K72: 0 | L72: =IF(AND('1. Documentation'!E58="NOK",'1. Documentation'!B58="J"),1,0) -> 0
A73: 3.23 | B73: ='3. Control syst. + command'!J27 -> NOK | C73: =IF('3. Control syst. + command'!J27="NOK",'3. Control syst. + command'!I27,"none") -> 0 | G73: =IF('Overview of measures'!$B73="OK",1,IF('Overview of measures'!$B73="NR",1,0)) -> 0 | J73: 1 | K73: 0 | L73: =IF(AND('1. Documentation'!E59="NOK",'1. Documentation'!B59="J"),1,0) -> 0
A74: 3.24 | B74: ='3. Control syst. + command'!J28 -> OK | C74: =IF('3. Control syst. + command'!J28="NOK",'3. Control syst. + command'!I28,"none") -> none | G74: =IF('Overview of measures'!$B74="OK",1,IF('Overview of measures'!$B74="NR",1,0)) -> 1 | J74: 0 | K74: 0 | L74: =IF(AND('1. Documentation'!E60="NOK",'1. Documentation'!B60="J"),1,0) -> 0
A75: 3.25 | B75: ='3. Control syst. + command'!J29 -> NOK | C75: =IF('3. Control syst. + command'!J29="NOK",'3. Control syst. + command'!I29,"none") -> 0 | G75: =IF('Overview of measures'!$B75="OK",1,IF('Overview of measures'!$B75="NR",1,0)) -> 0 | J75: 1 | K75: 0 | L75: =IF(AND('1. Documentation'!E61="NOK",'1. Documentation'!B61="J"),1,0) -> 0
A76: 3.26 | B76: ='3. Control syst. + command'!J30 -> OK | C76: =IF('3. Control syst. + command'!J30="NOK",'3. Control syst. + command'!I30,"none") -> none | G76: =IF('Overview of measures'!$B76="OK",1,IF('Overview of measures'!$B76="NR",1,0)) -> 1 | J76: 0 | K76: 0 | L76: =IF(AND('1. Documentation'!E62="NOK",'1. Documentation'!B62="J"),1,0) -> 0
A77: 3.27 | B77: ='3. Control syst. + command'!J31 -> NOK | C77: =IF('3. Control syst. + command'!J31="NOK",'3. Control syst. + command'!I31,"none") -> 0 | G77: =IF('Overview of measures'!$B77="OK",1,IF('Overview of measures'!$B77="NR",1,0)) -> 0 | J77: 1 | K77: 0 | L77: =IF(AND('1. Documentation'!E63="NOK",'1. Documentation'!B63="J"),1,0) -> 0
A78: Emergency stop devices | J78: 0 | K78: 0 | L78: =IF(AND('1. Documentation'!E64="NOK",'1. Documentation'!B64="J"),1,0) -> 0
A79: 3.28 | B79: ='3. Control syst. + command'!J33 -> OK | C79: =IF('3. Control syst. + command'!J33="NOK",'3. Control syst. + command'!I33,"none") -> none | G79: =IF('Overview of measures'!$B79="OK",1,IF('Overview of measures'!$B79="NR",1,0)) -> 1 | J79: 0 | K79: 0 | L79: =IF(AND('1. Documentation'!E65="NOK",'1. Documentation'!B65="J"),1,0) -> 0
A80: 3.29 | B80: ='3. Control syst. + command'!J34 -> NOK | C80: =IF('3. Control syst. + command'!J34="NOK",'3. Control syst. + command'!I34,"none") -> 0 | G80: =IF('Overview of measures'!$B80="OK",1,IF('Overview of measures'!$B80="NR",1,0)) -> 0 | J80: 1 | K80: 0 | L80: =IF(AND('1. Documentation'!E66="NOK",'1. Documentation'!B66="J"),1,0) -> 0
A81: 3.30 | B81: ='3. Control syst. + command'!J35 -> OK | C81: =IF('3. Control syst. + command'!J35="NOK",'3. Control syst. + command'!I35,"none") -> none | G81: =IF('Overview of measures'!$B81="OK",1,IF('Overview of measures'!$B81="NR",1,0)) -> 1 | J81: 0 | K81: 0 | L81: =IF(AND('1. Documentation'!E67="NOK",'1. Documentation'!B67="J"),1,0) -> 0
A82: 3.31 | B82: ='3. Control syst. + command'!J36 -> NOK | C82: =IF('3. Control syst. + command'!J36="NOK",'3. Control syst. + command'!I36,"none") -> 0 | G82: =IF('Overview of measures'!$B82="OK",1,IF('Overview of measures'!$B82="NR",1,0)) -> 0 | J82: =IF(B82="NOK",1,0) -> 1 | K82: =IF(J82=FALSE,1,0) -> 0 | L82: =IF(AND('1. Documentation'!E68="NOK",'1. Documentation'!B68="J"),1,0) -> 0
A83: 3.32 | B83: ='3. Control syst. + command'!J37 -> OK | C83: =IF('3. Control syst. + command'!J37="NOK",'3. Control syst. + command'!I37,"none") -> none | G83: =IF('Overview of measures'!$B83="OK",1,IF('Overview of measures'!$B83="NR",1,0)) -> 1 | J83: 0 | K83: 0 | L83: =IF(AND('1. Documentation'!E69="NOK",'1. Documentation'!B69="J"),1,0) -> 0
A84: 3.33 | B84: ='3. Control syst. + command'!J38 -> NOK | C84: =IF('3. Control syst. + command'!J38="NOK",'3. Control syst. + command'!I38,"none") -> 0 | G84: =IF('Overview of measures'!$B84="OK",1,IF('Overview of measures'!$B84="NR",1,0)) -> 0 | J84: 1 | K84: 0 | L84: =IF(AND('1. Documentation'!E70="NOK",'1. Documentation'!B70="J"),1,0) -> 0
A85: 3.34 | B85: ='3. Control syst. + command'!J39 -> OK | C85: =IF('3. Control syst. + command'!J39="NOK",'3. Control syst. + command'!I39,"none") -> none | G85: =IF('Overview of measures'!$B85="OK",1,IF('Overview of measures'!$B85="NR",1,0)) -> 1 | J85: 0 | K85: 0 | L85: =IF(AND('1. Documentation'!E72="NOK",'1. Documentation'!B72="J"),1,0) -> 0
A86: 3.35 | B86: ='3. Control syst. + command'!J40 -> NOK | C86: =IF('3. Control syst. + command'!J40="NOK",'3. Control syst. + command'!I40,"none") -> 0 | G86: =IF('Overview of measures'!$B86="OK",1,IF('Overview of measures'!$B86="NR",1,0)) -> 0 | J86: 1 | K86: 0 | L86: =IF(AND('1. Documentation'!E73="NOK",'1. Documentation'!B73="J"),1,0) -> 0
A87: Coordinated machines (Production lines)
A88: Command facilities coordinated machine
A89: 3.36 | B89: ='3. Control syst. + command'!J43 -> OK | C89: =IF('3. Control syst. + command'!J43="NOK",'3. Control syst. + command'!I43,"none") -> none | G89: =IF('Overview of measures'!$B89="OK",1,IF('Overview of measures'!$B89="NR",1,0)) -> 1
A90: 3.37 | B90: ='3. Control syst. + command'!J44 -> NOK | C90: =IF('3. Control syst. + command'!J44="NOK",'3. Control syst. + command'!I44,"none") -> 0 | G90: =IF('Overview of measures'!$B90="OK",1,IF('Overview of measures'!$B90="NR",1,0)) -> 0
A91: 3.38 | B91: ='3. Control syst. + command'!J45 -> OK | C91: =IF('3. Control syst. + command'!J45="NOK",'3. Control syst. + command'!I45,"none") -> none | G91: =IF('Overview of measures'!$B91="OK",1,IF('Overview of measures'!$B91="NR",1,0)) -> 1
A92: 3.39 | B92: ='3. Control syst. + command'!J46 -> OK | C92: =IF('3. Control syst. + command'!J46="NOK",'3. Control syst. + command'!I46,"none") -> none | G92: =IF('Overview of measures'!$B92="OK",1,IF('Overview of measures'!$B92="NR",1,0)) -> 1
A93: Start-up of the coordinated line
A94: 3.40 | B94: ='3. Control syst. + command'!J48 -> NOK | C94: =IF('3. Control syst. + command'!J48="NOK",'3. Control syst. + command'!I48,"none") -> 0 | G94: =IF('Overview of measures'!$B94="OK",1,IF('Overview of measures'!$B94="NR",1,0)) -> 0
A95: 3.41 | B95: ='3. Control syst. + command'!J49 -> NOK | C95: =IF('3. Control syst. + command'!J49="NOK",'3. Control syst. + command'!I49,"none") -> 0 | G95: =IF('Overview of measures'!$B95="OK",1,IF('Overview of measures'!$B95="NR",1,0)) -> 0
A96: 3.42 | B96: ='3. Control syst. + command'!J50 -> OK | C96: =IF('3. Control syst. + command'!J50="NOK",'3. Control syst. + command'!I50,"none") -> none | G96: =IF('Overview of measures'!$B96="OK",1,IF('Overview of measures'!$B96="NR",1,0)) -> 1
A97: 3.43 | B97: ='3. Control syst. + command'!J51 -> NOK | C97: =IF('3. Control syst. + command'!J51="NOK",'3. Control syst. + command'!I51,"none") -> 0 | G97: =IF('Overview of measures'!$B97="OK",1,IF('Overview of measures'!$B97="NR",1,0)) -> 0
A98: 3.44 | B98: ='3. Control syst. + command'!J52 -> NOK | C98: =IF('3. Control syst. + command'!J52="NOK",'3. Control syst. + command'!I52,"none") -> 0 | G98: =IF('Overview of measures'!$B98="OK",1,IF('Overview of measures'!$B98="NR",1,0)) -> 0
A99: Shutdown of the coordinated machine
A100: 3.45 | B100: ='3. Control syst. + command'!J54 -> OK | C100: =IF('3. Control syst. + command'!J54="NOK",'3. Control syst. + command'!I54,"none") -> none | G100: =IF('Overview of measures'!$B100="OK",1,IF('Overview of measures'!$B100="NR",1,0)) -> 1
A101: 3.46 | B101: ='3. Control syst. + command'!J55 -> OK | C101: =IF('3. Control syst. + command'!J55="NOK",'3. Control syst. + command'!I55,"none") -> none | G101: =IF('Overview of measures'!$B101="OK",1,IF('Overview of measures'!$B101="NR",1,0)) -> 1
A102: 3.47 | B102: ='3. Control syst. + command'!J56 -> OK | C102: =IF('3. Control syst. + command'!J56="NOK",'3. Control syst. + command'!I56,"none") -> none | G102: =IF('Overview of measures'!$B102="OK",1,IF('Overview of measures'!$B102="NR",1,0)) -> 1
A103: 3.48 | B103: ='3. Control syst. + command'!J57 -> NOK | C103: =IF('3. Control syst. + command'!J57="NOK",'3. Control syst. + command'!I57,"none") -> 0 | G103: =IF('Overview of measures'!$B103="OK",1,IF('Overview of measures'!$B103="NR",1,0)) -> 0
A104: 3.49 | B104: ='3. Control syst. + command'!J58 -> NOK | C104: =IF('3. Control syst. + command'!J58="NOK",'3. Control syst. + command'!I58,"none") -> 0 | G104: =IF('Overview of measures'!$B104="OK",1,IF('Overview of measures'!$B104="NR",1,0)) -> 0
A105: Emergency Stop devices of the coordinated machine
A106: 3.50 | B106: ='3. Control syst. + command'!J60 -> NOK | C106: =IF('3. Control syst. + command'!J60="NOK",'3. Control syst. + command'!I60,"none") -> 0 | G106: =IF('Overview of measures'!$B106="OK",1,IF('Overview of measures'!$B106="NR",1,0)) -> 0
A107: 3.51 | B107: ='3. Control syst. + command'!J61 -> NOK | C107: =IF('3. Control syst. + command'!J61="NOK",'3. Control syst. + command'!I61,"none") -> 0 | G107: =IF('Overview of measures'!$B107="OK",1,IF('Overview of measures'!$B107="NR",1,0)) -> 0
A108: 3.52 | B108: ='3. Control syst. + command'!J62 -> OK | C108: =IF('3. Control syst. + command'!J62="NOK",'3. Control syst. + command'!I62,"none") -> none | G108: =IF('Overview of measures'!$B108="OK",1,IF('Overview of measures'!$B108="NR",1,0)) -> 1
A109: Warningsignals and warning signs
A110: 3.53 | B110: ='3. Control syst. + command'!J64 -> OK | C110: =IF('3. Control syst. + command'!J64="NOK",'3. Control syst. + command'!I64,"none") -> none | G110: =IF('Overview of measures'!$B110="OK",1,IF('Overview of measures'!$B110="NR",1,0)) -> 1
A111: 3.54 | B111: ='3. Control syst. + command'!J65 -> NOK | C111: =IF('3. Control syst. + command'!J65="NOK",'3. Control syst. + command'!I65,"none") -> 0
B112: =COUNTIFS(B48:B86,"blank") -> 0 | G112: =SUBTOTAL(101,'Overview of measures'!$G$48:$G$111) -> 0.4905660377 | J112: 0 | K112: 0 | L112: =IF(AND('1. Documentation'!E74="NOK",'1. Documentation'!B74="J"),1,0) -> 0
J113: 0 | K113: 0 | L113: =IF(AND('1. Documentation'!E75="NOK",'1. Documentation'!B75="J"),1,0) -> 0
A114: 4. Mechanical hazards | D114: =IF(B158>0,"answered incompletely","answer completely") -> answer completely | G114: =AVERAGE('Overview of measures'!$G$116:$G$157) -> 0.7142857143 | J114: 1 | K114: 0 | L114: =IF(AND('1. Documentation'!E76="NOK",'1. Documentation'!B76="J"),1,0) -> 0
A115: Question No. | B115: Assessment | C115: Measures | D115: Who | E115: Date | F115: Effectiveness check | G115: % closed | J115: 0 | K115: 0 | L115: =IF(AND('1. Documentation'!E77="NOK",'1. Documentation'!B77="J"),1,0) -> 0
A116: 4.1 | B116: ='4. Protection against mech. haz'!J2 -> NOK | C116: =IF('4. Protection against mech. haz'!J2="NOK",'4. Protection against mech. haz'!I2,"none") -> 0 | G116: =IF(B116="OK",1,IF(B116="NR",1,0)) -> 0 | J116: 1 | K116: 0 | L116: =IF(AND('1. Documentation'!E78="NOK",'1. Documentation'!B78="J"),1,0) -> 0
A117: 4.2 | B117: ='4. Protection against mech. haz'!J3 -> NOK | C117: =IF('4. Protection against mech. haz'!J3="NOK",'4. Protection against mech. haz'!I3,"none") -> 0 | G117: =IF(B117="OK",1,IF(B117="NR",1,0)) -> 0 | J117: 1 | K117: 0 | L117: =IF(AND('1. Documentation'!E79="NOK",'1. Documentation'!B79="J"),1,0) -> 0
A118: 4.3 | B118: ='4. Protection against mech. haz'!J4 -> OK | C118: =IF('4. Protection against mech. haz'!J4="NOK",'4. Protection against mech. haz'!I4,"none") -> none | G118: =IF(B118="OK",1,IF(B118="NR",1,0)) -> 1 | J118: 0 | K118: 0 | L118: =IF(AND('1. Documentation'!E80="NOK",'1. Documentation'!B80="J"),1,0) -> 0
A119: 4.4 | B119: ='4. Protection against mech. haz'!J5 -> NOK | C119: =IF('4. Protection against mech. haz'!J5="NOK",'4. Protection against mech. haz'!I5,"none") -> 0 | G119: =IF(B119="OK",1,IF(B119="NR",1,0)) -> 0 | J119: 1 | K119: 0 | L119: =IF(AND('1. Documentation'!E81="NOK",'1. Documentation'!B81="J"),1,0) -> 0
A120: 4.5 | B120: ='4. Protection against mech. haz'!J6 -> OK | C120: =IF('4. Protection against mech. haz'!J6="NOK",'4. Protection against mech. haz'!I6,"none") -> none | G120: =IF(B120="OK",1,IF(B120="NR",1,0)) -> 1 | J120: 0 | K120: 0 | L120: =IF(AND('1. Documentation'!E82="NOK",'1. Documentation'!B82="J"),1,0) -> 0
A121: Risks arising from moving parts | J121: 0 | K121: 0 | L121: =IF(AND('1. Documentation'!E83="NOK",'1. Documentation'!B83="J"),1,0) -> 0
A122: 4.6 | B122: ='4. Protection against mech. haz'!J8 -> OK | C122: =IF('4. Protection against mech. haz'!J8="NOK",'4. Protection against mech. haz'!I8,"none") -> none | G122: =IF(B122="OK",1,IF(B122="NR",1,0)) -> 1 | J122: 0 | K122: 0 | L122: =IF(AND('1. Documentation'!E84="NOK",'1. Documentation'!B84="J"),1,0) -> 0
A123: 4.7 | B123: ='4. Protection against mech. haz'!J9 -> NOK | C123: =IF('4. Protection against mech. haz'!J9="NOK",'4. Protection against mech. haz'!I9,"none") -> 0 | G123: 0 | J123: 1 | K123: 0 | L123: =IF(AND('1. Documentation'!E85="NOK",'1. Documentation'!B85="J"),1,0) -> 0
A124: 4.8 | B124: ='4. Protection against mech. haz'!J10 -> OK | C124: =IF('4. Protection against mech. haz'!J10="NOK",'4. Protection against mech. haz'!I10,"none") -> none | G124: 1 | J124: 0 | K124: 0 | L124: =IF(AND('1. Documentation'!E86="NOK",'1. Documentation'!B86="J"),1,0) -> 0
A125: 4.9 | B125: ='4. Protection against mech. haz'!J11 -> OK | C125: =IF('4. Protection against mech. haz'!J11="NOK",'4. Protection against mech. haz'!I11,"none") -> none | G125: 1 | J125: 0 | K125: 0 | L125: =IF(AND('1. Documentation'!E87="NOK",'1. Documentation'!B87="J"),1,0) -> 0
A126: 4.10 | B126: ='4. Protection against mech. haz'!J12 -> OK | C126: =IF('4. Protection against mech. haz'!J12="NOK",'4. Protection against mech. haz'!I12,"none") -> none | G126: 1 | J126: 0 | K126: 0 | L126: =IF(AND('1. Documentation'!E88="NOK",'1. Documentation'!B88="J"),1,0) -> 0
A127: 4.11 | B127: ='4. Protection against mech. haz'!J13 -> OK | C127: =IF('4. Protection against mech. haz'!J13="NOK",'4. Protection against mech. haz'!I13,"none") -> none | G127: 1 | J127: 0 | K127: 0 | L127: =IF(AND('1. Documentation'!E89="NOK",'1. Documentation'!B89="J"),1,0) -> 0
A128: 4.12 | B128: ='4. Protection against mech. haz'!J14 -> OK | C128: =IF('4. Protection against mech. haz'!J14="NOK",'4. Protection against mech. haz'!I14,"none") -> none | G128: 1 | J128: 0 | K128: 0 | L128: =IF(AND('1. Documentation'!E90="NOK",'1. Documentation'!B90="J"),1,0) -> 0
A129: 4.13 | B129: ='4. Protection against mech. haz'!J15 -> OK | C129: =IF('4. Protection against mech. haz'!J15="NOK",'4. Protection against mech. haz'!I15,"none") -> none | G129: 1 | J129: 0 | K129: 0 | L129: =IF(AND('1. Documentation'!E91="NOK",'1. Documentation'!B91="J"),1,0) -> 0
A130: Fixed guards and safety devices | J130: 0 | K130: 0 | L130: =IF(AND('1. Documentation'!E92="NOK",'1. Documentation'!B92="J"),1,0) -> 0
A131: 4.14 | B131: ='4. Protection against mech. haz'!J17 -> NOK | C131: =IF('4. Protection against mech. haz'!J17="NOK",'4. Protection against mech. haz'!I17,"none") -> 0 | G131: =IF(B131="OK",1,IF(B131="NR",1,0)) -> 0 | J131: 1 | K131: 0 | L131: =IF(AND('1. Documentation'!E93="NOK",'1. Documentation'!B93="J"),1,0) -> 0
A132: 4.15 | B132: ='4. Protection against mech. haz'!J18 -> OK | C132: =IF('4. Protection against mech. haz'!J18="NOK",'4. Protection against mech. haz'!I18,"none") -> none | G132: =IF(B132="OK",1,IF(B132="NR",1,0)) -> 1 | J132: 0 | K132: 0 | L132: =IF(AND('1. Documentation'!E94="NOK",'1. Documentation'!B94="J"),1,0) -> 0
A133: 4.16 | B133: ='4. Protection against mech. haz'!J19 -> NOK | C133: =IF('4. Protection against mech. haz'!J19="NOK",'4. Protection against mech. haz'!I19,"none") -> 0 | G133: =IF(B133="OK",1,IF(B133="NR",1,0)) -> 0 | J133: 1 | K133: 0 | L133: =IF(AND('1. Documentation'!E95="NOK",'1. Documentation'!B95="J"),1,0) -> 0
A134: Moving guards and safety devices | J134: 0 | K134: 0 | L134: =IF(AND('1. Documentation'!E96="NOK",'1. Documentation'!B96="J"),1,0) -> 0
A135: 4.17 | B135: ='4. Protection against mech. haz'!J21 -> OK | C135: =IF('4. Protection against mech. haz'!J21="NOK",'4. Protection against mech. haz'!I21,"none") -> none | G135: =IF(B135="OK",1,IF(B135="NR",1,0)) -> 1 | J135: 0 | K135: 0 | L135: =IF(AND('1. Documentation'!E97="NOK",'1. Documentation'!B97="J"),1,0) -> 0
A136: 4.18 | B136: ='4. Protection against mech. haz'!J22 -> OK | C136: =IF('4. Protection against mech. haz'!J22="NOK",'4. Protection against mech. haz'!I22,"none") -> none | G136: =IF(B136="OK",1,IF(B136="NR",1,0)) -> 1 | J136: 0 | K136: 0 | L136: =IF(AND('1. Documentation'!E98="NOK",'1. Documentation'!B98="J"),1,0) -> 0
A137: 4.19 | B137: ='4. Protection against mech. haz'!J23 -> OK | C137: =IF('4. Protection against mech. haz'!J23="NOK",'4. Protection against mech. haz'!I23,"none") -> none | G137: =IF(B137="OK",1,IF(B137="NR",1,0)) -> 1 | J137: 0 | K137: 0 | L137: =IF(AND('1. Documentation'!E99="NOK",'1. Documentation'!B99="J"),1,0) -> 0
A138: 4.20 | B138: ='4. Protection against mech. haz'!J24 -> OK | C138: =IF('4. Protection against mech. haz'!J24="NOK",'4. Protection against mech. haz'!I24,"none") -> none | G138: =IF(B138="OK",1,IF(B138="NR",1,0)) -> 1 | J138: 0 | K138: 0 | L138: =IF(AND('1. Documentation'!E100="NOK",'1. Documentation'!B100="J"),1,0) -> 0
A139: Protective devices (e.g. light curtains, laser scanners, two-hand triggering facilities, pressure-sensitive mats). | J139: 0 | K139: 0 | L139: =IF(AND('1. Documentation'!E101="NOK",'1. Documentation'!B101="J"),1,0) -> 0
A140: 4.21 | B140: ='4. Protection against mech. haz'!J26 -> NOK | C140: =IF('4. Protection against mech. haz'!J26="NOK",'4. Protection against mech. haz'!I26,"none") -> 0 | G140: =IF(B140="OK",1,IF(B140="NR",1,0)) -> 0 | J140: 1 | K140: 0 | L140: =IF(AND('1. Documentation'!E102="NOK",'1. Documentation'!B102="J"),1,0) -> 0
A141: 4.22 | B141: ='4. Protection against mech. haz'!J27 -> OK | C141: =IF('4. Protection against mech. haz'!J27="NOK",'4. Protection against mech. haz'!I27,"none") -> none | G141: 1 | J141: 0 | K141: 0 | L141: =IF(AND('1. Documentation'!E103="NOK",'1. Documentation'!B103="J"),1,0) -> 0
A142: 4.23 | B142: ='4. Protection against mech. haz'!J28 -> OK | C142: =IF('4. Protection against mech. haz'!J28="NOK",'4. Protection against mech. haz'!I28,"none") -> none | G142: 1 | J142: 0 | K142: 0 | L142: =IF(AND('1. Documentation'!E104="NOK",'1. Documentation'!B104="J"),1,0) -> 0
A143: 4.24 | B143: ='4. Protection against mech. haz'!J29 -> OK | C143: =IF('4. Protection against mech. haz'!J29="NOK",'4. Protection against mech. haz'!I29,"none") -> none | G143: 1 | J143: 0 | K143: 0 | L143: =IF(AND('1. Documentation'!E105="NOK",'1. Documentation'!B105="J"),1,0) -> 0
A144: 4.25 | B144: ='4. Protection against mech. haz'!J30 -> OK | C144: =IF('4. Protection against mech. haz'!J30="NOK",'4. Protection against mech. haz'!I30,"none") -> none | G144: 1 | J144: 0 | K144: 0 | L144: =IF(AND('1. Documentation'!E106="NOK",'1. Documentation'!B106="J"),1,0) -> 0
A145: 4.26 | B145: ='4. Protection against mech. haz'!J31 -> OK | C145: =IF('4. Protection against mech. haz'!J31="NOK",'4. Protection against mech. haz'!I31,"none") -> none | G145: 1 | J145: 0 | K145: 0 | L145: =IF(AND('1. Documentation'!E107="NOK",'1. Documentation'!B107="J"),1,0) -> 0
A146: 4.27 | B146: ='4. Protection against mech. haz'!J32 -> OK | C146: =IF('4. Protection against mech. haz'!J32="NOK",'4. Protection against mech. haz'!I32,"none") -> none | G146: 1 | J146: 0 | K146: 0 | L146: =IF(AND('1. Documentation'!E108="NOK",'1. Documentation'!B108="J"),1,0) -> 0
A147: 4.28 | B147: ='4. Protection against mech. haz'!J33 -> OK | C147: =IF('4. Protection against mech. haz'!J33="NOK",'4. Protection against mech. haz'!I33,"none") -> none | G147: 1 | J147: 0 | K147: 0 | L147: =IF(AND('1. Documentation'!E109="NOK",'1. Documentation'!B109="J"),1,0) -> 0
A148: 4.29 | B148: ='4. Protection against mech. haz'!J34 -> OK | C148: =IF('4. Protection against mech. haz'!J34="NOK",'4. Protection against mech. haz'!I34,"none") -> none | G148: 1 | J148: 0 | K148: 0 | L148: =IF(AND('1. Documentation'!E110="NOK",'1. Documentation'!B110="J"),1,0) -> 0
A149: 4.30 | B149: ='4. Protection against mech. haz'!J35 -> OK | C149: =IF('4. Protection against mech. haz'!J35="NOK",'4. Protection against mech. haz'!I35,"none") -> none | G149: 1 | J149: 0 | K149: 0 | L149: =IF(AND('1. Documentation'!E111="NOK",'1. Documentation'!B111="J"),1,0) -> 0
A150: Coordinated machines (Production lines)
A151: Fixed guards and movable guards
A152: 4.31 | B152: ='4. Protection against mech. haz'!J38 -> NOK | C152: =IF('4. Protection against mech. haz'!J38="NOK",'4. Protection against mech. haz'!I38,"none") -> 0 | G152: =IF(B152="OK",1,IF(B152="NR",1,0)) -> 0
A153: 4.32 | B153: ='4. Protection against mech. haz'!J39 -> OK | C153: =IF('4. Protection against mech. haz'!J39="NOK",'4. Protection against mech. haz'!I39,"none") -> none | G153: 1
A154: 4.33 | B154: ='4. Protection against mech. haz'!J40 -> NOK | C154: =IF('4. Protection against mech. haz'!J40="NOK",'4. Protection against mech. haz'!I40,"none") -> 0 | G154: 0
A155: Breaking, bursting, shattering
A156: 4.34 | B156: ='4. Protection against mech. haz'!J42 -> NOK | C156: =IF('4. Protection against mech. haz'!J42="NOK",'4. Protection against mech. haz'!I42,"none") -> 0 | G156: =IF(B156="OK",1,IF(B156="NR",1,0)) -> 0
A157: 4.35 | B157: ='4. Protection against mech. haz'!J43 -> OK | C157: =IF('4. Protection against mech. haz'!J43="NOK",'4. Protection against mech. haz'!I43,"none") -> none | G157: 1
B158: =COUNTIFS(B116:B149,"blank") -> 0 | G158: =SUBTOTAL(101,'Overview of measures'!$G$116:$G$157) -> 0.7142857143 | J158: 0 | K158: 0
J159: 0 | K159: 0
A160: 5. Other hazards | D160: =IF(B171>0,"answered incompletely","answer completely") -> answer completely | G160: =AVERAGE('Overview of measures'!$G$162:$G$170) -> 0.8333333333 | J160: 1 | K160: 0
A161: Question No. | B161: Assessment | C161: Measures | D161: Who | E161: Date | F161: Effectiveness check | G161: % closed | J161: 0 | K161: 0
A162: Hazards arising from hot and cold surfaces | J162: 0 | K162: 0
A163: 5.1 | B163: ='5. Other hazards '!J3 -> NOK | C163: =IF('5. Other hazards '!J3="NOK",'5. Other hazards '!I3,"none") -> 0 | G163: =IF(B163="OK",1,IF(B163="NR",1,0)) -> 0 | J163: 1 | K163: 0 | L163: =IF(AND('5. Other hazards '!E4="NIO",'5. Other hazards '!B4="J"),1,0) -> 0
A164: 5.2 | B164: ='5. Other hazards '!J4 -> OK | C164: =IF('5. Other hazards '!J4="NOK",'5. Other hazards '!I4,"none") -> none | G164: =IF(B164="OK",1,IF(B164="NR",1,0)) -> 1 | J164: 0 | K164: 0 | L164: =IF(AND('5. Other hazards '!E5="NIO",'5. Other hazards '!B5="J"),1,0) -> 0
A165: 5.3 | B165: ='5. Other hazards '!J5 -> OK | C165: =IF('5. Other hazards '!J5="NOK",'5. Other hazards '!I5,"none") -> none | G165: =IF(B165="OK",1,IF(B165="NR",1,0)) -> 1 | J165: 0 | K165: 0 | L165: =IF(AND('5. Other hazards '!E6="NIO",'5. Other hazards '!B6="J"),1,0) -> 0
A166: Hazards caused by gas, vapor, mist, liquid and dust | J166: 0 | K166: 0 | L166: =IF(AND('5. Other hazards '!E7="NIO",'5. Other hazards '!B7="J"),1,0) -> 0
A167: 5.4 | B167: ='5. Other hazards '!J7 -> OK | C167: =IF('5. Other hazards '!J7="NOK",'5. Other hazards '!I7,"none") -> none | G167: =IF(B167="OK",1,IF(B167="NR",1,0)) -> 1 | J167: 0 | K167: 0 | L167: =IF(AND('5. Other hazards '!E8="NIO",'5. Other hazards '!B8="J"),1,0) -> 0
A168: Risk of personnel slipping, tripping or falling | J168: 0 | K168: 0 | L168: =IF(AND('5. Other hazards '!E9="NIO",'5. Other hazards '!B9="J"),1,0) -> 0
A169: 5.5 | B169: ='5. Other hazards '!J9 -> OK | C169: =IF('5. Other hazards '!J9="NOK",'5. Other hazards '!I9,"none") -> none | G169: =IF(B169="OK",1,IF(B169="NR",1,0)) -> 1 | J169: 0 | K169: 0 | L169: =IF(AND('5. Other hazards '!E10="NIO",'5. Other hazards '!B10="J"),1,0) -> 0
A170: 5.6 | B170: ='5. Other hazards '!J10 -> OK | C170: =IF('5. Other hazards '!J10="NOK",'5. Other hazards '!I10,"none") -> none | G170: =IF(B170="OK",1,IF(B170="NR",1,0)) -> 1 | J170: 0 | K170: 0 | L170: =IF(AND('6. Setting up Maintanace Serv.'!E13="NIO",'6. Setting up Maintanace Serv.'!B13="J"),1,0) -> 0
B171: =COUNTIFS(B163:B170,"blank") -> 0 | G171: =SUBTOTAL(101,'Overview of measures'!$G$162:$G$170) -> 0.8333333333 | J171: 0 | K171: 0 | L171: =IF(AND('6. Setting up Maintanace Serv.'!E14="NIO",'6. Setting up Maintanace Serv.'!B14="J"),1,0) -> 0
J172: 0 | K172: 0 | L172: =IF(AND('1. Documentation'!E126="NIO",'1. Documentation'!B126="J"),1,0) -> 0
A173: 6. Setting up / Maintenance / Service | D173: =IF(B193>0,"answered incompletely","answer completely") -> answer completely | G173: =AVERAGE('Overview of measures'!$G$175:$G$192) -> 1 | J173: 1 | K173: 0 | L173: =IF(AND('6. Setting up Maintanace Serv.'!E2="NIO",'6. Setting up Maintanace Serv.'!B2="J"),1,0) -> 0
A174: Question No. | B174: Assessment | C174: Measures | D174: Who | E174: Date | F174: Effectiveness check | G174: % closed | J174: 0 | K174: 0 | L174: =IF(AND('6. Setting up Maintanace Serv.'!E3="NIO",'6. Setting up Maintanace Serv.'!B3="J"),1,0) -> 0
A175: 6.1 | B175: ='6. Setting up Maintanace Serv.'!J3 -> OK | C175: =IF('6. Setting up Maintanace Serv.'!J3="NOK",'6. Setting up Maintanace Serv.'!I3,"none") -> none | G175: =IF(B175="OK",1,IF(B175="NR",1,0)) -> 1 | J175: 0 | K175: 0 | L175: =IF(AND('6. Setting up Maintanace Serv.'!E4="NIO",'6. Setting up Maintanace Serv.'!B4="J"),1,0) -> 0
A176: Maintenance, service, cleaning and debugging work | J176: 0 | K176: 0 | L176: =IF(AND('6. Setting up Maintanace Serv.'!E5="NIO",'6. Setting up Maintanace Serv.'!B5="J"),1,0) -> 0
A177: 6.2 | B177: ='6. Setting up Maintanace Serv.'!J5 -> OK | C177: =IF('6. Setting up Maintanace Serv.'!J5="NOK",'6. Setting up Maintanace Serv.'!I5,"none") -> none | G177: =IF(B177="OK",1,IF(B177="NR",1,0)) -> 1 | J177: 0 | K177: 0 | L177: =IF(AND('6. Setting up Maintanace Serv.'!E6="NIO",'6. Setting up Maintanace Serv.'!B6="J"),1,0) -> 0
A178: 6.3 | B178: ='6. Setting up Maintanace Serv.'!J6 -> OK | C178: =IF('6. Setting up Maintanace Serv.'!J6="NOK",'6. Setting up Maintanace Serv.'!I6,"none") -> none | G178: 1 | J178: =IF(B178="NOK",1,0) -> 0 | K178: =IF(J178=FALSE,1,0) -> 0 | L178: =IF(AND('6. Setting up Maintanace Serv.'!E7="NIO",'6. Setting up Maintanace Serv.'!B7="J"),1,0) -> 0
A179: 6.4 | B179: ='6. Setting up Maintanace Serv.'!J7 -> OK | C179: =IF('6. Setting up Maintanace Serv.'!J7="NOK",'6. Setting up Maintanace Serv.'!I7,"none") -> none | G179: 1 | J179: 0 | K179: 0 | L179: =IF(AND('6. Setting up Maintanace Serv.'!E8="NIO",'6. Setting up Maintanace Serv.'!B8="J"),1,0) -> 0
A180: 6.5 | B180: ='6. Setting up Maintanace Serv.'!J8 -> OK | C180: =IF('6. Setting up Maintanace Serv.'!J8="NOK",'6. Setting up Maintanace Serv.'!I8,"none") -> none | G180: 1 | J180: 0 | K180: 0 | L180: =IF(AND('6. Setting up Maintanace Serv.'!E9="NIO",'6. Setting up Maintanace Serv.'!B9="J"),1,0) -> 0
A181: 6.6 | B181: ='6. Setting up Maintanace Serv.'!J9 -> OK | C181: =IF('6. Setting up Maintanace Serv.'!J9="NOK",'6. Setting up Maintanace Serv.'!I9,"none") -> none | G181: 1 | J181: 0 | K181: 0 | L181: =IF(AND('6. Setting up Maintanace Serv.'!E10="NIO",'6. Setting up Maintanace Serv.'!B10="J"),1,0) -> 0
A182: 6.7 | B182: ='6. Setting up Maintanace Serv.'!J10 -> OK | C182: =IF('6. Setting up Maintanace Serv.'!J10="NOK",'6. Setting up Maintanace Serv.'!I10,"none") -> none | G182: 1 | J182: 0 | K182: 0 | L182: =IF(AND('6. Setting up Maintanace Serv.'!E11="NIO",'6. Setting up Maintanace Serv.'!B11="J"),1,0) -> 0
A183: 6.8 | B183: ='6. Setting up Maintanace Serv.'!J11 -> OK | C183: =IF('6. Setting up Maintanace Serv.'!J11="NOK",'6. Setting up Maintanace Serv.'!I11,"none") -> none | G183: 1 | J183: 0 | K183: 0 | L183: =IF(AND('6. Setting up Maintanace Serv.'!E12="NIO",'6. Setting up Maintanace Serv.'!B12="J"),1,0) -> 0
A184: 6.9 | B184: ='6. Setting up Maintanace Serv.'!J12 -> OK | C184: =IF('6. Setting up Maintanace Serv.'!J12="NOK",'6. Setting up Maintanace Serv.'!I12,"none") -> none | G184: 1 | J184: 0 | K184: 0 | L184: =IF(AND('7. Risk ass. with electr. Energ'!E12="NIO",'7. Risk ass. with electr. Energ'!B12="J"),1,0) -> 0
A185: Coordinated machines (Production lines)
A186: Production, loading and unloading
A187: 6.10 | B187: ='6. Setting up Maintanace Serv.'!J15 -> OK | C187: =IF('6. Setting up Maintanace Serv.'!J15="NOK",'6. Setting up Maintanace Serv.'!I15,"none") -> none | G187: =IF(B187="OK",1,IF(B187="NR",1,0)) -> 1
A188: 6.11 | B188: ='6. Setting up Maintanace Serv.'!J16 -> OK | C188: =IF('6. Setting up Maintanace Serv.'!J16="NOK",'6. Setting up Maintanace Serv.'!I16,"none") -> none | G188: 1
A189: Maintenance, service, cleaning and debugging work
A190: 6.12 | B190: ='6. Setting up Maintanace Serv.'!J18 -> OK | C190: =IF('6. Setting up Maintanace Serv.'!J18="NOK",'6. Setting up Maintanace Serv.'!I18,"none") -> none | G190: =IF(B190="OK",1,IF(B190="NR",1,0)) -> 1
A191: 6.13 | B191: ='6. Setting up Maintanace Serv.'!J19 -> OK | C191: =IF('6. Setting up Maintanace Serv.'!J19="NOK",'6. Setting up Maintanace Serv.'!I19,"none") -> none | G191: 1
A192: 6.14 | B192: ='6. Setting up Maintanace Serv.'!J20 -> OK | C192: =IF('6. Setting up Maintanace Serv.'!J20="NOK",'6. Setting up Maintanace Serv.'!I20,"none") -> none | G192: 1
B193: =COUNTIFS(B175:B184,"blank") -> 0 | G193: =SUBTOTAL(101,'Overview of measures'!$G$175:$G$192) -> 1 | J193: 0 | K193: 0 | L193: =IF(AND('7. Risk ass. with electr. Energ'!E13="NIO",'7. Risk ass. with electr. Energ'!B13="J"),1,0) -> 0
J194: 0 | K194: 0 | L194: =IF(AND('1. Documentation'!E140="NIO",'1. Documentation'!B140="J"),1,0) -> 0
A195: 7. Risks associated with electrical energy | D195: =IF(B210>0,"answered incompletely","answer completely") -> answer completely | G195: =AVERAGE('Overview of measures'!$G$197:$G$209) -> 0.4545454545 | J195: 1 | K195: 0 | L195: =IF(AND('1. Documentation'!E141="NIO",'1. Documentation'!B141="J"),1,0) -> 0
A196: Question No. | B196: Assessment | C196: Measures | D196: Who | E196: Date | F196: Effectiveness check | G196: % closed | J196: 0 | K196: 0 | L196: =IF(AND('1. Documentation'!E142="NIO",'1. Documentation'!B142="J"),1,0) -> 0
A197: 7.1 | B197: ='7. Risk ass. with electr. Energ'!J2 -> NOK | C197: =IF('7. Risk ass. with electr. Energ'!J2="NOK",'7. Risk ass. with electr. Energ'!I2,"none") -> 0 | G197: =IF(B197="OK",1,IF(B197="NR",1,0)) -> 0 | J197: 1 | K197: 0 | L197: =IF(AND('7. Risk ass. with electr. Energ'!E2="NIO",'7. Risk ass. with electr. Energ'!B2="J"),1,0) -> 0
A198: 7.2 | B198: ='7. Risk ass. with electr. Energ'!J3 -> NOK | C198: =IF('7. Risk ass. with electr. Energ'!J3="NOK",'7. Risk ass. with electr. Energ'!I3,"none") -> 0 | G198: 0 | J198: 1 | K198: 0 | L198: =IF(AND('7. Risk ass. with electr. Energ'!E3="NIO",'7. Risk ass. with electr. Energ'!B3="J"),1,0) -> 0
A199: 7.3 | B199: ='7. Risk ass. with electr. Energ'!J4 -> NOK | C199: =IF('7. Risk ass. with electr. Energ'!J4="NOK",'7. Risk ass. with electr. Energ'!I4,"none") -> 0 | G199: 0 | J199: 1 | K199: 0 | L199: =IF(AND('7. Risk ass. with electr. Energ'!E4="NIO",'7. Risk ass. with electr. Energ'!B4="J"),1,0) -> 0
A200: 7.4 | B200: ='7. Risk ass. with electr. Energ'!J5 -> NOK | C200: =IF('7. Risk ass. with electr. Energ'!J5="NOK",'7. Risk ass. with electr. Energ'!I5,"none") -> 0 | G200: 0 | J200: 1 | K200: 0 | L200: =IF(AND('7. Risk ass. with electr. Energ'!E5="NIO",'7. Risk ass. with electr. Energ'!B5="J"),1,0) -> 0
A201: 7.5 | B201: ='7. Risk ass. with electr. Energ'!J6 -> OK | C201: =IF('7. Risk ass. with electr. Energ'!J6="NOK",'7. Risk ass. with electr. Energ'!I6,"none") -> none | G201: 1 | J201: 0 | K201: 0 | L201: =IF(AND('7. Risk ass. with electr. Energ'!E6="NIO",'7. Risk ass. with electr. Energ'!B6="J"),1,0) -> 0
... 15 more rows

Sheet 1. Documentation
A1: 1 | B1: Rel. | C1: Owner Mech. Elect. | D1: Documentation / Orderliness | E1: Assess-ment [choise] | F1: Regula-tion. / Norm | G1: FAQ | H1: Comments | I1: Measures | J1: Bewertung
A2: 1.1 | B2: J | C2: M/E/O | D2: Does the machine have a rating plate / name plate? (details of the manufacturer, type, year of construction, etc.) | E2: OK | F2: MRL 2006/42/EG Annex,1.7.3 | G2: INFO | J2: =E2 -> OK | K2: =IF(J2="NOK",Ausgabe(),"okay") -> okay
A3: 1.2 | B3: N | C3: O | D3: Is an up-to-date version of the operating manual available in the native language of the country where the machine is used? | E3: NOK | F3: MRL 2006/42/EG Annex I,1.7.4 | G3: INFO | J3: =E3 -> NOK | K3: =IF(J3="NOK",Ausgabe( ),"okay") -> 
A4: 1.3 | B4: N | C4: O | D4: Do the operators, set-up personnel and maintenance personnel etc. have access to the operating manual and to all of the documents required for them to perform the work assigned to them? | E4: OK | G4: INFO | H4: Version: | J4: OK | K4: =IF(J4="NOK",Ausgabe(),"okay") -> okay
A5: 1.4 | B5: J | C5: O | D5: Was the machine designe according to the local legal requirements at the date of Pruchasing/Comissioning? E.g. for machines used in Europe that were brought into circulation after 1995: Is an EC declaration of conformity available for the machine / system as a whole? | E5: NOK | F5: MRL 2006/42/EG Annex I,1.7.4.2. | G5: INFO | H5: Applicable also for self designed machines for internal use, but also after significant changes or conjacenated machines. | J5: NOK | K5: =IF(J5="NOK",Ausgabe(),"okay") -> 
A6: 1.5 | B6: J | C6: O/M/E | D6: Does the operating manual contain a description of safe practices in production mode and for maintenance, troubleshooting, set-up and repair work? | E6: NOK | G6: INFO | J6: NOK | K6: =IF(J6="NOK",Ausgabe(),"okay") -> 
A7: 1.6 | B7: N | C7: E | D7: Is a circuit diagram available and is it up to date? | E7: NOK | H7: Last update from: | J7: NOK | K7: =IF(J7="NOK",Ausgabe(),"okay") -> 
A8: 1.7 | C8: M/E | D8: Is a hydraulic diagram available and is it up to date? | E8: NOK | H8: Last update from: | J8: NOK | K8: =IF(J8="NOK",Ausgabe(),"okay") -> 
A9: 1.8 | C9: M/E | D9: Is a pneumatic diagram available and is it up to date? | E9: NOK | H9: Last update from: | J9: NOK | K9: =IF(J9="NOK",Ausgabe(),"okay") -> 
A10: 1.9 | B10: J | C10: O | D10: Have limits for using the machine been defined, e.g.: maximum speed; maximum pressure; part dimensions; etc. for which the machine has been designed? | E10: NOK | G10: INFO | J10: NOK | K10: =IF(J10="NOK",Ausgabe(),"okay") -> 
A11: 1.10 | C11: O | D11: Does the operating manual contain details of safe practices for the handling of the residual risks that it describes (e.g. venting, relieving, unloading, etc.)? | E11: NOK | G11: INFO | J11: NOK | K11: =IF(J11="NOK",Ausgabe(),"okay") -> 
A12: 1.11 | C12: O | D12: Does the operating manual contain details of airborne noise emissions (noise level)? | E12: NOK | G12: INFO | H12: dB(A): | J12: NOK | K12: =IF(J12="NOK",Ausgabe(),"okay") -> 
A13: 1.12 | C13: O/M/E | D13: Does the machine bear the necessary safety and hazard warning signs? | E13: NOK | F13: MRL 2006/42/EG Annex I,1.7.2 | G13: INFO | H13: ISO 3864-1 | J13: NOK | K13: =IF(J13="NOK",Ausgabe(),"okay") -> 
A14: 1.13 | C14: O/M/E | D14: Does the maintenance schedule give details of when safety related parts / components of the machine are to be inspected and the ways in which they are to be checked and maintained? | E14: NOK | H14: Provided by the owner e.g. components with specific wear, chains, screws, and other components keeping parts in a defined position but also Light Curtain, Safety Relays, etc. | J14: NOK | K14: =IF(J14="NOK",Ausgabe(),"okay") -> 
A15: 1.14 | D15: Is information about the exchange of components (if the end of lifecycle is reached) transferred from the Operating manual into the Preventive Maintenance Plan. | E15: OK | H15: e.g. mecanical components, safety components (switches, relays, valves,..) hydraulic hoses,… | J15: =E15 -> OK | K15: =IF(J15="NOK",Ausgabe(),"okay") -> okay
A16: 1.15 | C16: O | D16: Does the maintenance plan take the operating conditions into consideration? (e.g. 3 shifts etc.) | E16: NOK | H16: Provided by the owner | J16: NOK | K16: =IF(J16="NOK",Ausgabe(),"okay") -> 
A17: 1.16 | C17: O | D17: Are documented Work Instructions/OPIs available for the machine / process and contain the necessary information about hazards and adequate measures? cess? | E17: NOK | H17: Provided by the owner | J17: NOK | K17: =IF(J17="NOK",Ausgabe(),"okay") -> 
A18: 1.17 | C18: O | D18: Has a risk assessment been carried out by the manufacturer in accordance with ISO 12100 (or other appropriate specifications)) | E18: OK | F18: ISO 12100 | J18: OK | K18: =IF(J18="NOK",Ausgabe(),"okay") -> okay
A19: Coordinated machines (Production lines) | K19: =IF(J19="NOK",Ausgabe(),"okay") -> okay
A20: Documentation / Orderliness | K20: =IF(J20="NOK",Ausgabe(),"okay") -> okay
A21: 1.18 | D21: Is a complete set of documentation available for the "assembly of machines or systems", which indicates / describes the operating modes and traversing variants of the complete production line as planned by the manufacturer? | E21: NOK | J21: =E21 -> NOK | K21: =IF(J21="NOK",Ausgabe(),"okay") -> 
A22: 1.19 | D22: Are operating instructions / instructions for use available for the coordinated machines / systems? | E22: NOK | J22: =E22 -> NOK | K22: =IF(J22="NOK",Ausgabe(),"okay") -> 
A23: 1.20 | D23: Was a risk assessment (FSS 10) carried out for the various working areas and operator stations throughout the system? Are operators aware of the residual risks at the machine interfaces? Are operators aware of the residual risks associated with the operating modes planned by the manufacturer? | E23: NOK | J23: NOK | K23: =IF(J23="NOK",Ausgabe(),"okay") -> 
A24: 1.21 | D24: Are the electrical safety interlocks for the individual machines clearly described for concatenated operation in interface diagrams or corresponding circuit diagrams? | E24: NOK | J24: NOK | K24: =IF(J24="NOK",Ausgabe(),"okay") -> 
A25: 1.22 | D25: Are appropriate hydraulic diagrams available that show the interfaces between the various machines? | E25: NOK | J25: NOK | K25: =IF(J25="NOK",Ausgabe(),"okay") -> 
A26: 1.23 | D26: Are appropriate pneumatic diagrams available that show the interfaces between the various machines? | E26: NOK | J26: NOK | K26: =IF(J26="NOK",Ausgabe(),"okay") -> 
A27: 1.24 | D27: Are there lockout positions enabling safe disconnection of the energy supplies to the various machines and/or the machine as a whole, and are these clearly designated / clearly marked? | E27: OK | J27: OK | K27: =IF(J27="NOK",Ausgabe(),"okay") -> okay

Sheet 2. Use and installation
A1: 2 | B1: Rel. | C1: Owner Mech. Elect. | D1: Use and installation | E1: Assess-ment [choise] | F1: Regula-tion. / Norm | G1: FAQ | H1: Comments | I1: Measures | J1: Bewertung
A2: 2.1 | B2: J | C2: O | D2: Is the machine solely used for the purpose for which it was designed and built by the manufacturer? (e.g. speed material, tools, etc.) | E2: OK | G2: INFO | J2: =E2 -> OK | K2: =IF(J2="NIO",Ausgabe(),"okay") -> okay
A3: 2.2 | C3: O | D3: Is the machine or equipment solely operated under the ambient conditions specified by the manufacturer? (e.g. temperature, humidity, altitude, etc.) | E3: NOK | G3: INFO | J3: =E3 -> NOK | K3: =IF(J3="NIO",Ausgabe(),"okay") -> okay
A4: 2.3 | C4: M/E | D4: Is the machine connected to the energy levels specified by the manufacturer? (e.g. maximum pressure, electrical fuses, voltage, nominal frequency, etc.) | E4: OK | G4: INFO | J4: OK | K4: =IF(J4="NIO",Ausgabe(),"okay") -> okay
A5: 2.4 | B5: N | C5: O/M/E | D5: Are the working zones adequately illuminated for the work performed in them? | E5: NOK | F5: BetrSichV Annex 2 / 2.4 | G5: INFO | J5: NOK | K5: =IF(J5="NIO",Ausgabe(),"okay") -> okay
A6: 2.5 | C6: M/E | D6: Are the maintenance and service areas adequately illuminated for the work performed in them? | E6: OK | F6: Annex 1 / 2.9 | G6: INFO | J6: OK | K6: =IF(J6="NIO",Ausgabe(),"okay") -> okay
A7: 2.6 | C7: M | D7: Has the machine been anchored / secured in accordance with the manufacturer's instructions and have the normal loads and stresses, which may be encountered in operational service, been taken into consideration? | E7: NOK | F7: MD 2006/42/EC Annex I, 1.3.1 | G7: INFO | J7: NOK | K7: =IF(J7="NIO",Ausgabe(),"okay") -> okay
A8: 2.7 | B8: J | C8: M | D8: Have all machine parts, components, guards and safety devices been fitted properly and securely? | E8: OK | H8: Visual inspection | J8: OK | K8: =IF(J8="NIO",Ausgabe(),"okay") -> okay
B9: =COUNTIF('2. Use and installation'!$B$2:$B$8,"J") -> 2

Sheet 3. Control syst. + command
A1: 3 | B1: Rel. | C1: Owner Mech. Elect. | D1: Control systems and command facilities (operator control elements) | E1: Assess-ment [choise] | F1: Regula-tion. / Norm | G1: FAQ | H1: Comments | I1: Measures | J1: Bewertung
A2: 3.1 | C2: O/M/E | D2: Have measures been taken to ensure that reasonably foreseeable human error during operation does not lead to hazardous situations? | E2: NOK | F2: MRL 2006/42/EG Annex I,1.2.1 | G2: INFO | H2: according to IEC 61508 / IEC 62061 | J2: =E2 -> NOK | K2: =IF(J2="NOK",Ausgabe(),"okay") -> 
A3: 3.2 | C3: E/M | D3: Have measures been taken to ensure that the machine cannot start unexpectedly? | E3: OK | F3: MRL 2006/42/EG Annex I,1.2.1 | G3: INFO | H3: according to IEC 61508 / IEC 62061 | J3: =E3 -> OK | K3: =IF(J3="NOK",Ausgabe(),"okay") -> okay
A4: 3.3 | B4: J | C4: E/M | D4: Have measures been taken to ensure that the parameters of the machinery do not change in an uncontrolled way, where such change may lead to hazardous situations? | E4: NOK | F4: MRL 2006/42/EG Annex I,1.2.1 | G4: INFO | J4: NOK | K4: =IF(J4="NOK",Ausgabe(),"okay") -> 
A5: 3.4 | C5: M/E | D5: Have measures been taken to ensure that stop commands always have priority over start commands? | E5: OK | F5: MRL 2006/42/EG Annex I,1.2.1 | G5: INFO | J5: OK | K5: =IF(J5="NOK",Ausgabe(),"okay") -> okay
A6: 3.5 | C6: M/E | D6: Have measures been taken to ensure that objects, which constitute a potential risk, cannot fall or be ejected? | E6: NOK | F6: MRL 2006/42/EG Annex I,1.2.1 | G6: INFO | J6: NOK | K6: =IF(J6="NOK",Ausgabe(),"okay") -> 
A7: 3.6 | B7: J | C7: M/E | D7: Have measures been taken to ensure that potentially hazardous movements can be stopped at any time in any operating mode? | E7: OK | F7: MRL 2006/42/EG Annex I,1.2.1 | G7: INFO | J7: OK | K7: =IF(J7="NOK",Ausgabe(),"okay") -> okay
A8: Command facilities | K8: =IF(J8="NOK",Ausgabe(),"okay") -> okay
A9: 3.7 | C9: E/M | D9: Are the command facilities / control devices clearly recognizable as such and can their functions be easily differentiated by means of labels in the national language or pictograms? | E9: NOK | F9: MRL 2006/42/EG Annex I,1.2.2. | G9: INFO | J9: NOK | K9: =IF(J9="NOK",Ausgabe(),"okay") -> 
A10: 3.8 | C10: E/M | D10: Are the command facilities / control devices positioned in such a way as to ensure that they can be operated reliably, safely, unhesitatingly, quickly and positively? | E10: OK | F10: MRL 2006/42/EG Annex I,1.2.2. | G10: INFO | J10: OK | K10: =IF(J10="NOK",Ausgabe(),"okay") -> okay
A11: 3.9 | C11: E/M | D11: Are the command facilities fitted outside the hazardous zones? | E11: NOK | F11: MRL 2006/42/EG Annex I,1.2.2. | G11: INFO | J11: NOK | K11: =IF(J11="NOK",Ausgabe(),"okay") -> 
A12: 3.10 | C12: E/M | D12: Are the command facilities / control devices positioned in such a way as to ensure that the operator can see into the danger zone, or have measures been implemented to meet the requirements laid down in 3.11 to 3.15? | E12: OK | F12: MRL 2006/42/EG Annex I,1.2.2. | G12: INFO | J12: OK | K12: =IF(J12="NOK",Ausgabe(),"okay") -> okay
A13: 3.11 | C13: O/E/M | D13: If it is not possible to see into the danger zone(s): Has a person detection system been installed? | E13: NOK | F13: MRL 2006/42/EG Annex I,1.2.2. | G13: INFO | J13: NOK | K13: =IF(J13="NOK",Ausgabe(),"okay") -> 
A14: 3.12 | C14: E/M | D14: Or does the control system transmit an acoustic or visual warning signal before the machine is started? | E14: OK | F14: MRL 2006/42/EG Annex I,1.2.2. | G14: INFO | J14: OK | K14: =IF(J14="NOK",Ausgabe(),"okay") -> okay
A15: 3.13 | C15: E/M | D15: Are the visual warning signals easily visible and can they be distinguished from other warning signals? | E15: NOK | F15: MRL 2006/42/EG Annex I,1.2.2. | J15: NOK | K15: =IF(J15="NOK",Ausgabe(),"okay") -> 
A16: 3.14 | C16: E/M | D16: Are the acoustic warning signals easily audible and can they be distinguished from other warning signals? | E16: OK | F16: MRL 2006/42/EG Annex I,1.2.2. | J16: OK | K16: =IF(J16="NOK",Ausgabe(),"okay") -> okay
A17: 3.15 | C17: O/E/M | D17: Does the employee have sufficient time to leave the danger zone? | E17: NOK | F17: MRL 2006/42/EG Annex I,1.2.2. | G17: INFO | J17: NOK | K17: =IF(J17="NOK",Ausgabe(),"okay") -> 
A18: 3.16 | C18: O/E/M | D18: Have measures been taken to ensure that, if there are several control positions, the machine can only be controlled from one control position at any one time? | E18: OK | F18: MRL 2006/42/EG Annex I,1.2.2. | G18: INFO | J18: OK | K18: =IF(J18="NOK",Ausgabe(),"okay") -> okay
A19: Start-up (power-up, switch-on, etc.) | K19: =IF(J19="NOK",Ausgabe(),"okay") -> okay
A20: 3.17 | C20: E/M | D20: Have measures been taken to the ensure that no potentially hazardous movements are triggered when energy sources are activated (e.g. connecting up to the compressed air supply, turning the master switch on, etc.)? | E20: NOK | F20: IEC 60 204-1 7.5 | J20: NOK | K20: =IF(J20="NOK",Ausgabe(),"okay") -> 
A21: 3.18 | C21: E/M | D21: Have measures been taken to ensure that no potentially hazardous movements can occur when an energy supply is resumed after a failure? (undervoltage protection). | E21: OK | J21: OK | K21: =IF(J21="NOK",Ausgabe(),"okay") -> okay
A22: Shutdown (power-down, switch-off)
A23: 3.19 | C23: E | D23: Is there a master switch to turn the complete machine off? | E23: NOK | J23: NOK | K23: =IF(J23="NOK",Ausgabe(),"okay") -> 
A24: 3.20 | C24: E | D24: Can the master switch be secured to prevent unauthorized or inadvertent operation? | E24: OK | J24: OK | K24: =IF(J24="NOK",Ausgabe(),"okay") -> okay
A25: 3.21 | B25: J | C25: E/M | D25: Are command facilities to deactivate potentially hazardous movements / parts, or the machine as a whole, provided at every workplace? | E25: NOK | F25: MRL 2006/42/EG Annex I,1.2.4.1 | G25: INFO | J25: NOK | K25: =IF(J25="NOK",Ausgabe(),"okay") -> 
A26: 3.22 | C26: E/M | D26: When the system is shut down, does this result in the machine assuming a safe state? | E26: OK | F26: MRL 2006/42/EG Annex I,1.2.4.2 | J26: OK | K26: =IF(J26="NOK",Ausgabe(),"okay") -> okay
A27: 3.23 | C27: E | D27: Are easily accessible and clearly recognizable facilities provided to disconnect the machine from the electrical energy source? | E27: NOK | F27: MRL 2006/42/EG Annex I,1.6.3. | G27: INFO | J27: NOK | K27: =IF(J27="NOK",Ausgabe(),"okay") -> 
A28: 3.24 | C28: E/M | D28: Are easily accessible and clearly recognizable facilities provided to disconnect the machine from the pneumatic energy source? | E28: OK | F28: MRL 2006/42/EG Annex I,1.6.3. | J28: OK | K28: =IF(J28="NOK",Ausgabe(),"okay") -> okay
A29: 3.25 | C29: E/M | D29: Are easily accessible and clearly recognizable facilities provided to disconnect the machine from the hydraulic energy source? | E29: NOK | F29: MRL 2006/42/EG Annex I,1.6.3. | J29: NOK | K29: =IF(J29="NOK",Ausgabe(),"okay") -> 
A30: 3.26 | C30: E/M | D30: Are easily accessible and clearly recognizable facilities provided to disconnect the machine from the steam energy source? | E30: OK | F30: MRL 2006/42/EG Annex I,1.6.3. | J30: OK | K30: =IF(J30="NOK",Ausgabe(),"okay") -> okay
A31: 3.27 | B31: J | C31: E/M | D31: Are easily accessible and clearly recognizable facilities provided to disconnect the machine from any other energy sources? | E31: NOK | F31: MRL 2006/42/EG Annex I,1.6.3. | J31: NOK | K31: =IF(J31="NOK",Ausgabe(),"okay") -> 
A32: Emergency stop devices
A33: 3.28 | C33: E | D33: Do the emergency stop devices operate reliably? Does the installation comply with the requirements for the risk-specific performance level (PLr) as laid down in ISO 13849-1? | E33: OK | F33: ISO 13849-1 | G33: INFO | J33: OK | K33: =IF(J33="NOK",Ausgabe(),"okay") -> okay
A34: 3.29 | C34: E/M | D34: Does the failure of a safety device lead to the machine coming to a standstill? | E34: NOK | F34: MD 2006/42/EC Annex I, 1.2.4.3 | J34: NOK | K34: =IF(J34="NOK",Ausgabe(),"okay") -> 
A35: 3.30 | B35: N | C35: E/M | D35: Have measures been taken to ensure that activation of the emergency stop facility does not result in any additional potentially hazardous movement? | E35: OK | J35: OK | K35: =IF(J35="NOK",Ausgabe(),"okay") -> okay
A36: 3.31 | B36: J | C36: E | D36: Is the emergency stop device easily accessible? | E36: NOK | F36: EN ISO 13850 | J36: NOK | K36: =IF(J36="NOK",Ausgabe(),"okay") -> 
A37: 3.32 | C37: E | D37: Do the emergency stop devices take the form of pushbuttons, mushroom-head pushbuttons, bars fitted at waist height or cable-operated switches? | E37: OK | J37: OK | K37: =IF(J37="NOK",Ausgabe(),"okay") -> okay
A38: 3.33 | C38: E | D38: Are the emergency stop devices colored RED, with a yellow background wherever possible? | E38: NOK | J38: NOK | K38: =IF(J38="NOK",Ausgabe(),"okay") -> 
A39: 3.34 | C39: E | D39: Have the emergency stop actuating elements been designed as latching components (it must not be possible to reset by simply removing the load from the actuating component)? | E39: OK | J39: OK | K39: =IF(J39="NOK",Ausgabe(),"okay") -> okay
A40: 3.34 | C40: E | D40: Does the emergency stop device transpose potentially hazardous movements or processes into a safe state as quickly as possible (stop category)? | E40: NOK | F40: ISO 13850 | J40: NOK | K40: =IF(J40="NOK",Ausgabe(),"okay") -> 
A41: Coordinated machines (Production lines)
A42: Command facilities
A43: 3.36 | D43: Do the control consoles and operator consoles for the various machine give a clear indication of the machines to which they belong? It is easy to distinguish between their respective command functions? Have measures been taken to eliminate the risk of mistaking one control console / operator control element with another? | E43: OK | J43: OK | K43: =IF(J43="NOK",Ausgabe(),"okay") -> okay
A44: 3.37 | D44: Where control and mode selector switches are provided at several locations, have measures been taken to ensure that they cannot be set to different positions. Is each selector switch position clearly recognizable and does it correspond to just one control / operating mode? | E44: NOK | J44: NOK | K44: =IF(J44="NOK",Ausgabe(),"okay") -> 
A45: 3.38 | D45: Have measures been taken to ensure that the shutdown control elements for the assembly of machines, including the EMERGENCY STOP control elements, not only bring the machine to a standstill, but also all of the facilities connected to it where continued operation of such facilities could constitute a potential hazard? | E45: OK | J45: OK | K45: =IF(J45="NOK",Ausgabe(),"okay") -> okay
A46: 3.39 | D46: Do the machine operators have an unobstructed view of the hazardous zone(s) in the concatenated system from every operator / control console? If not, has a person presence detection system been installed, or are acoustic or visual alarm signals given before the system is started and does the employee have sufficient time to leave the hazardous zone? | E46: OK | J46: OK | K46: =IF(J46="NOK",Ausgabe(),"okay") -> okay
A47: Start-up of the coordinated line
A48: 3.40 | D48: Is it only possible to START the concatenated machines / production line by deliberately operating the control elements provided for this purpose? | E48: NOK | J48: NOK | K48: =IF(J48="NOK",Ausgabe(),"okay") -> 
A49: 3.41 | D49: Have measures been taken to ensure that the assembly of machines / production line cannot be started from several control consoles at the same time? kann? | E49: NOK | J49: NOK | K49: =IF(J49="NOK",Ausgabe(),"okay") -> 
A50: 3.42 | D50: Have measures been taken to ensure that changes to the machine parameters (e.g. filling level, temperature, speed, etc.) cannot lead to uncontrolled start-up of other units (e.g. follower machine)? | E50: OK | J50: OK | K50: =IF(J50="NOK",Ausgabe(),"okay") -> okay
A51: 3.43 | D51: Measures have been taken to ensure that the machine(s) cannot start up unintentionally in the event of a breakdown in the energy supply to the machine(s), when the energy supply has been restored following a breakdown, or following a change in the energy supply. | E51: NOK | J51: NOK | K51: =IF(J51="NOK",Ausgabe(),"okay") -> 
A52: 3.44 | D52: Measures have been taken to ensure that moving machine components or workpieces held by the machine cannot drop or be thrown out of the machine in the event of an energy failure. | E52: NOK | J52: NOK | K52: =IF(J52="NOK",Ausgabe(),"okay") -> 
A53: Shutdown of the coordinated line
A54: 3.45 | D54: Is each operator console equipped with OFF switches (System STOP) for the assembly of machines? These STOP functions have priority over all other operator / control functions | E54: OK | J54: OK | K54: =IF(J54="NOK",Ausgabe(),"okay") -> okay
A55: 3.46 | D55: Is the entire production line / system BROUGHT TO A STANDSTILL in a safe, coordinated manner? | E55: OK | J55: OK | K55: =IF(J55="NOK",Ausgabe(),"okay") -> okay
A56: 3.47 | D56: Is there a main isolating switch (master switch) to switch the entire concatenated system on and off?en? | E56: OK | J56: OK | K56: =IF(J56="NOK",Ausgabe(),"okay") -> okay
A57: 3.48 | D57: If not, has a clearly recognizable facility been provided that offers a means of isolating every machine from every energy source? (cf General FSS 5 checklists for the individual machines)? | E57: NOK | J57: NOK | K57: =IF(J57="NOK",Ausgabe(),"okay") -> 
A58: 3.49 | D58: Considering the interfaces, has a clearly visible facility been provided that offers a means of isolating and locking the system out from every energy source in the various production or maintenance modes? | E58: NOK | J58: NOK | K58: =IF(J58="NOK",Ausgabe(),"okay") -> 
A59: E-Stop devices of the coordinated line
A60: 3.50 | D60: Are EMERGENCY STOP control elements provided at every control / operator console and at every workplace? When operated, do the individual machines come to a standstill as quickly as possible, without give rise to additional risks? | E60: NOK | J60: NOK | K60: =IF(J60="NOK",Ausgabe(),"okay") -> 
A61: 3.51 | D61: EMERGENCY STOP control elements for the assembly of machines and EMERGENCY STOP control elements for individual machines (maschine stop) are clearly marked and described in an appropriate manner for the machine operators in their various functions? | E61: NOK | J61: NOK | K61: =IF(J61="NOK",Ausgabe(),"okay") -> 
A62: 3.52 | D62: Can the EMERGENCY STOP control elements for the individiual machines be operated without giving rise to any additional risks or hazards? All of the EMERGENCY STOP control elements installed on the assembly of machines must be reset locally at the EMERGENCY STOP control elements themselves and acknowledged at a central operator control station for the sys-tem. Neither the individual machine nor the assembly of machines may start up au-tomatically following the acknowledgement. | E62: OK | J62: OK | K62: =IF(J62="NOK",Ausgabe(),"okay") -> okay
A63: Warningsignals and warning signs
A64: 3.53 | D64: When using different visual and acoustic alarm systems, are they easy to assign to the respective machine and clearly marked accordingly? | E64: OK | J64: OK | K64: =IF(J64="NOK",Ausgabe(),"okay") -> okay
A65: 3.54 | D65: Are hazard marking pictograms used and are they arranged outside the danger areas? | E65: NOK | J65: NOK | K65: =IF(J65="NOK",Ausgabe(),"okay") -> 

Sheet 4. Protection against mech. haz
A1: 4 | B1: Rel. | C1: Owner Mech. Elect. | D1: Protection against mechanical hazards | E1: Assess-ment [choise] | F1: Regula-tion. / Norm | G1: FAQ | H1: Comments | I1: Measures | J1: Bewertung
A2: 4.1 | C2: M | D2: Have protective measures been implemented to guard against hazards caused by machine parts breaking, bursting and shattering? | E2: NOK | F2: MD 2006/42/EG Annex I,1.3.2 | G2: INFO | J2: =E2 -> NOK | K2: =IF(J2="NOK",Ausgabe(),"okay") -> 
A3: 4.2 | C3: M | D3: Have all parts of the machine been fitted properly and securely? | E3: NOK | F3: MD 2006/42/EG Annex I,1.3.2 | G3: INFO | J3: =E3 -> NOK | K3: =IF(J3="NOK",Ausgabe(),"okay") -> 
A4: 4.3 | C4: M/E | D4: Are all cables, pipes, leads and hoses protected and secured? (e.g. by hydraulic, pneumatic and thermal means) | E4: OK | J4: OK | K4: =IF(J4="NOK",Ausgabe(),"okay") -> okay
A5: 4.4 | C5: M/E | D5: Have safety devices been installed that prevent machine components / loads falling or sagging? Hydraulic / pneumatic check valves or mechanical fall arresters. | E5: NOK | F5: MD 2006/42/EG Annex I,1.3.3 Annex I, 1.3.9. | G5: INFO | J5: NOK | K5: =IF(J5="NOK",Ausgabe(),"okay") -> 
A6: 4.5 | B6: J | C6: M | D6: Have measures been taken to ensure that accessible machine parts have no sharp or rough edges and no projecting components? | E6: OK | F6: MD 2006/42/EG Anhnex I,1.3.4 | G6: INFO | J6: OK | K6: =IF(J6="NOK",Ausgabe(),"okay") -> okay
A7: Risks arising from moving parts
A8: 4.6 | C8: M/E | D8: Do the selected guards and safety devices prevent access to danger zones or bring potentially hazardous movements to a standstill before personnel can reach the danger zones? (minimum safety clearances are taken into account) | E8: OK | F8: MD 2006/42/EG Annex I,1.3.7 (EN 13857) | G8: INFO | J8: OK | K8: =IF(J8="NOK",Ausgabe(),"okay") -> okay
A9: 4.7 | B9: J | C9: M | D9: Are all guards and safety devices present and undamaged and are they in good working order? | E9: NOK | H9: Visual inspection | J9: NOK | K9: =IF(J9="NOK",Ausgabe(),"okay") -> 
A10: 4.8 | B10: N | C10: M | D10: Have the safety devices or guards been designed and built as rugged elements? | E10: OK | F10: MD 2006/42/EC Annex I, 1.3.2 | G10: INFO | J10: OK | K10: =IF(J10="NOK",Ausgabe(),"okay") -> okay
A11: 4.9 | B11: J | C11: M/E/O | D11: Have measures been taken to ensure that the guards and safety devices do not obstruct the necessary observation of the processes? | E11: OK | F11: EN 953 section 5.10 | G11: INFO | J11: OK | K11: =IF(J11="NOK",Ausgabe(),"okay") -> okay
A12: 4.10 | C12: O/M/E | D12: Have measures been taken to ensure that the guards and safety devices do not give rise to any additional hazards? | E12: OK | F12: EN 953 section 5.3.2 | G12: INFO | J12: OK | K12: =IF(J12="NOK",Ausgabe(),"okay") -> okay
A13: 4.11 | C13: M/E | D13: Have measures been taken to prevent vertically moving safety devices falling? | E13: OK | F13: MD 2006/42/EG Annex I,1.4.1. | G13: INFO | J13: OK | K13: =IF(J13="NOK",Ausgabe(),"okay") -> okay
A14: 4.12 | C14: E/M | D14: Are the installed guards and safety devices designed in such a way as to ensure that they cannot be easily manipulated, bypassed or rendered ineffective? | E14: OK | F14: MD 2006/42/EG Annex I,1.4.1. | G14: INFO | J14: OK | K14: =IF(J14="NOK",Ausgabe(),"okay") -> okay
A15: 4.13 | C15: M/E | D15: Are all guards and safety devices secured with safety bolts? (safety devices, guards, safety switches, light barriers, etc.) | E15: OK | G15: INFO | J15: OK | K15: =IF(J15="NOK",Ausgabe(),"okay") -> okay
A16: Fixed guards and safety devices
A17: 4.14 | C17: M/E | D17: Have all fixed guards and safety devices been fitted in their designated places properly, with at least 2 safety bolts? | E17: NOK | F17: MD 2006/42/EG Annex I,1.4.2.1. | G17: INFO | J17: NOK | K17: =IF(J17="NOK",Ausgabe(),"okay") -> 
A18: 4.15 | C18: M/E | D18: Does the guard / safety device prevent personnel reaching around, under, through and over (A-U-T-O) the danger zone with upper and lower limbs? | E18: OK | F18: ISO 13857 | G18: INFO | J18: OK | K18: =IF(J18="NOK",Ausgabe(),"okay") -> okay
A19: 4.16 | C19: M/E | D19: Are interlocking devices (safety switches) in place, which monitor the fixed guards and safety devices that are opened more than once a year? | E19: NOK | J19: NOK | K19: =IF(J19="NOK",Ausgabe(),"okay") -> 
A20: Moving guards and safety devices
A21: 4.17 | C21: E/M | D21: Are all moving safety devices monitored by interlocking devices (e.g. safety switches)? | E21: OK | F21: MRL 2006/42/EG Anhang I,1.4.2.2. | G21: INFO | J21: OK | K21: =IF(J21="NOK",Ausgabe(),"okay") -> okay
A22: 4.18 | C22: E | D22: When the safety function(s) depent on a control system (e.g. interlocking devices, light curtain. Two-hand-startd, etc.) are they consistent with the hazard-specific and risk-specific safety level (performance level (PL))? | E22: OK | F22: EN 954 / ISO EN 13849 / EN 62061 / IEC 61508 | G22: INFO | J22: OK | K22: =IF(J22="NOK",Ausgabe(),"okay") -> okay
A23: 4.19 | C23: E/M | D23: Are movable guards and safety devices on machines with stopping time secured by means of interlocking devices with guard locking devices? | E23: OK | F23: MRL 2006/42/EG Anhang I,1.4.2.2. | G23: INFO | J23: OK | K23: =IF(J23="NOK",Ausgabe(),"okay") -> okay
A24: 4.20 | B24: J | C24: E/M | D24: Are the edges of powered guards and safety devices protected by safety shutdown facilities (safety contact bars)? | E24: OK | F24: EN 953 Abs. 5.2.5.2 | G24: INFO | J24: OK | K24: =IF(J24="NOK",Ausgabe(),"okay") -> okay
A25: Protective devices (e.g. light curtains, laser scanners, two-hand triggering facilities, pressure-sensitive mats).
A26: 4.21 | C26: E/M | D26: Are the safety clearances and stopping times given on the machine for all danger zones? | E26: NOK | F26: ISO 13855 | G26: INFO | J26: NOK | K26: =IF(J26="NOK",Ausgabe(),"okay") -> 
A27: 4.22 | C27: E/M | D27: Are the actual safety clearances and stopping times meeting the requirements for a safe operation of the process? | E27: OK | J27: OK | K27: =IF(J27="NOK",Ausgabe(),"okay") -> okay
A28: 4.23 | C28: E/M | D28: Does the safety device remain active until the contact gap is less than 4 mm wide? | E28: OK | J28: OK | K28: =IF(J28="NOK",Ausgabe(),"okay") -> okay
A29: 4.24 | B29: J | C29: E/M | D29: Has one of the following precautions been taken to prevent people walking behind guards and safety devices: - Person detection system (e.g. pressure-sensitive mat, scanner, etc.) - Hand-held control device with enabling button - Double command inputs (e.g. acknowledging walking behind the safety device and a deliberate start command) only to be used if the hazardous area is clearly under visual control? | E29: OK | J29: OK | K29: =IF(J29="NOK",Ausgabe(),"okay") -> okay
A30: 4.25 | C30: E/M | D30: If a two-hand control device is installed: is the permitted interval between pressing the two buttons no longer than 0.5 seconds? | E30: OK | F30: DIN EN 574 | J30: OK | K30: =IF(J30="NOK",Ausgabe(),"okay") -> okay
A31: 4.26 | C31: O/M/E | D31: If a two-hand triggering device is installed: Has the workplace been designed as a one-man workplace? | E31: OK | F31: DIN EN 574 | G31: INFO | J31: OK | K31: =IF(J31="NOK",Ausgabe(),"okay") -> okay
A32: 4.27 | B32: J | C32: E/M | D32: Have measures been taken to eliminate the possibility of manipulating the two-hand control device? | E32: OK | G32: INFO | J32: OK | K32: =IF(J32="NOK",Ausgabe(),"okay") -> okay
A33: 4.28 | C33: M/E | D33: Have measures been taken to make it impossible to access the danger zone during a two-hand start? | E33: OK | J33: OK | K33: =IF(J33="NOK",Ausgabe(),"okay") -> okay
A34: 4.29 | C34: M/E | D34: Does the potentially hazardous movement only occur during a two-hand start? | E34: OK | J34: OK | K34: =IF(J34="NOK",Ausgabe(),"okay") -> okay
A35: 4.30 | C35: E/M | D35: Have the necessary safety clearances been determined and are they observed? | E35: OK | G35: INFO | J35: OK | K35: =IF(J35="NOK",Ausgabe(),"okay") -> okay
A36: Coordinated machines (Production lines)
A37: Fixed guards and movable guards
A38: 4.31 | D38: Have the potentially hazardous areas at the interfaces / handover points between the individual machines been secured by means of guards and safety devices? | E38: NOK | J38: NOK | K38: =IF(J38="NOK",Ausgabe(),"okay") -> 
A39: 4.32 | D39: Do these guards and safety devices comply with the requirements laid down in the general machine safety checklist? | E39: OK | J39: OK | K39: =IF(J39="NOK",Ausgabe(),"okay") -> okay
A40: 4.33 | D40: The opening of a guard or safety device brings the movement of the machine in the protected area to a standstill. After-running times have been taken into consideration. | E40: NOK | J40: NOK | K40: =IF(J40="NOK",Ausgabe(),"okay") -> 
A41: Breaking, bursting, shattering
A42: 4.34 | D42: Are the interface lines (pipelines, energy, signaling and interlick signaling lines) between the individual machines adequately protected against any risk of damage? Does an interruption in or damage to any of these lines result in a safe shutdown of the machines? | E42: NOK | J42: NOK | K42: =IF(J42="NOK",Ausgabe(),"okay") -> 
A43: 4.35 | D43: Have protective measures been implemented to protect personnel from hazards caused by machine parts breaking, bursting and shattering in the interface zones? | E43: OK | J43: OK | K43: =IF(J43="NOK",Ausgabe(),"okay") -> okay
C116: ='4. Protection against mech. haz'!A39 -> 4.32

Sheet 5. Other hazards
A1: 5 | B1: Rel. | C1: Owner Mech. Elect. | D1: Others hazards | E1: Assess-ment [choise] | F1: Regula-tion. / Norm | G1: FAQ | H1: Comments | I1: Measures | J1: Bewertung
A2: Hazards arising from hot and cold surfaces
A3: 5.1 | C3: E/M | D3: Have appropriate technical protective measures been taken to reliably prevent personnel coming into contact with very hot or very cold parts, or does question 5.2 apply? (e.g. Contact duration 0.5 s, metal surface --> burning threshold 67°C (153°F); Contact duration 0.5 s, plastic surface --> buring threshold 90°C (194°F)) | E3: NOK | F3: BetrSichV / 2.10 | G3: INFO | H3: ISO 13732-1-2006-Ergonomics of thermal environment - Methods for the assessment of human responses to contact with surfaces | J3: =E3 -> NOK | K3: =IF(J3="NIO",Ausgabe(),"okay") -> okay
A4: 5.2 | C4: E/M/O | D4: Where this is not possible, is contact prevented by handling equipment or personal protective equipment worn by the personnel? | E4: OK | F4: MD 2006/42/EC Annex I, 1.5.5. | G4: INFO | J4: =E4 -> OK | K4: =IF(J4="NIO",Ausgabe(),"okay") -> okay
A5: 5.3 | B5: N | C5: E/M/O | D5: Are the hot and cold surfaces marked accordingly? | E5: OK | F5: MD 2006/42/EC Annex I, 1.5.5. | J5: OK | K5: =IF(J5="NIO",Ausgabe(),"okay") -> okay
A6: Hazards caused by gas, vapor, mist, liquid and dust Visual inspection, working zone analysis, test record | K6: =IF(J6="NIO",Ausgabe(),"okay") -> okay
A7: 5.4 | C7: O | D7: Have extraction facilities been installed to extract such emissions at source? (e.g. workplace limits) | E7: OK | F7: MD 2006/42/EC Annex I, 1.5.13. | G7: INFO | J7: OK | K7: =IF(J7="NIO",Ausgabe(),"okay") -> okay
A8: Risk of personnel slipping, tripping or falling | K8: =IF(J8="NIO",Ausgabe(),"okay") -> okay
A9: 5.5 | B9: J | C9: O/M/E | D9: Have measures been taken to ensure that personnel cannot slip, trip or fall? | E9: OK | F9: MD 2006/42/EC Annex I, 1.5.15. | G9: INFO | J9: OK | K9: =IF(J9="NIO",Ausgabe(),"okay") -> okay
A10: 5.6 | C10: O/M/E | D10: Have suitable catwalks, platforms or intermediate platforms been installed to ensure safe access to the equipment? For maintenance, cleaning, loading with raw materials or removing the product at parts of the plant, which cannot be reached from the floor, for example? | E10: OK | F10: MD 2006/42/EC Annex I, 1.5.15. | J10: OK | K10: =IF(J10="NIO",Ausgabe(),"okay") -> okay

Sheet 6. Setting up Maintanace Serv.
A1: 6 | B1: Rel. | C1: Owner Mech. Elect. | D1: Setting up / Maintenance / Service | E1: Assess-ment [choise] | F1: Regula-tion. / Norm | G1: FAQ | H1: Comments | I1: Measures | J1: Bewertung
A2: Setting up / Maintenance / Service
A3: 6.1 | C3: M/E | D3: Do personnel have safe access to all of the areas required to perform their work safely? | E3: OK | F3: MD 2006/42/EC Annex I, 1.6.4 | G3: INFO | J3: =E3 -> OK | K3: =IF(J3="NOK",Ausgabe(),"okay") -> okay
A4: Maintenance, service, cleaning and debugging work
A5: 6.2 | B5: J | C5: M/E | D5: Do personnel have safe access to all of the areas required to perform their work safely? | E5: OK | F5: BetrSichV Annex 1 / 2.15 | G5: INFO | J5: =E5 -> OK | K5: =IF(J5="NOK",Ausgabe(),"okay") -> okay
A6: 6.3 | C6: M/E | D6: Can all work associated with maintenance, service, cleaning and debugging be carried out with the machine at a complete standstill, or can appropriate protective measures be implemented? | E6: OK | F6: BetrSichV Annex 1 / 2.12 | G6: INFO | J6: OK | K6: =IF(J6="NOK",Ausgabe(),"okay") -> okay
A7: 6.4 | C7: M/E | D7: Are protective measures implemented when work has to be performed under raised loads? | E7: OK | G7: INFO | J7: OK | K7: =IF(J7="NOK",Ausgabe(),"okay") -> okay
A8: 6.5 | B8: J | C8: M/E | D8: Have protective measures been implemented against hazards associated with stored / residual energies? (e.g. pressure reservoirs, hydraulic accumulators, electrical capacitors, etc.) | E8: OK | G8: INFO | H8: in case there is noc short circuit device for a electric capacitor refer to the discharge time | J8: OK | K8: =IF(J8="NOK",Ausgabe(),"okay") -> okay
A9: 6.6 | B9: N | C9: M/E | D9: Are venting, relieving and depressurizing facilities available that offer a safe means of releasing stored energies and are these facilities marked accordingly? | E9: OK | G9: see 6.5 | J9: OK | K9: =IF(J9="NOK",Ausgabe(),"okay") -> okay
A10: 6.7 | C10: M/E | D10: Are warning notices provided where it is not possible to release energy that is stored in certain systems? (e.g. work instruction, LOTO, on the machine and/or in the operating manual) | E10: OK | G10: see 6.5 | J10: OK | K10: =IF(J10="NOK",Ausgabe(),"okay") -> okay
A11: 6.8 | C11: O/M/E | D11: Have checking cycles, to be performed by specialized personnel, been defined for the installed guards and safety devices and are these carried out and documented? (e.g. for light curtains, emergency stop devices etc.) | E11: OK | J11: OK | K11: =IF(J11="NOK",Ausgabe(),"okay") -> okay
A12: 6.9 | C12: O/M/E | D12: Are there permits / release notes, which must be used when handing the machine over for maintenance and repair work? (this also include the return of the machine) | E12: OK | J12: OK | K12: =IF(J12="NOK",Ausgabe(),"okay") -> okay
A13: Coordinated machines (Production lines)
A14: Production, loading and unloading
A15: 6.10 | D15: Interface check of the areas between the individual machines. Do machine operators have safe access to all of the working areas, which they must enter in order to perform their work safely? | E15: OK | J15: OK | K15: =IF(J15="NOK",Ausgabe(),"okay") -> okay
A16: 6.11 | D16: Has a setup mode been established under safe operating conditions, e.g. running at a lower speed? | E16: OK | J16: OK | K16: =IF(J16="NOK",Ausgabe(),"okay") -> okay
A17: Maintenance, service, cleaning and debugging work
A18: 6.12 | D18: Interface check of the areas between the individual machines. Do personnel have safe access to all of the working areas, which they must enter in order to perform their work safely? | E18: OK | J18: OK | K18: =IF(J18="NOK",Ausgabe(),"okay") -> okay
A19: 6.13 | D19: Has a setup mode been established under safe operating conditions, e.g. running at a lower speed? | E19: OK | J19: OK | K19: =IF(J19="NOK",Ausgabe(),"okay") -> okay
A20: 6.14 | D20: Can all work associated with maintenance, service, cleaning and debugging be performed with the machine being at a standstill?n? | E20: OK | J20: OK | K20: =IF(J20="NOK",Ausgabe(),"okay") -> okay
C127: ='6. Setting up Maintanace Serv.'!J17 -> 0

Sheet 7. Risk ass. with electr. Energ
A1: 7 | B1: Rel. | C1: Owner Mech. Elect. | D1: Risks associated with electrical energy | E1: Assess-ment [choise] | F1: Regula-tion. / Norm | G1: FAQ | H1: Comments | I1: Measures | J1: Bewertung
A2: 7.1 | B2: N | C2: E | D2: Does the machine and its control devices have electric shock protection? (cable insulation, operator control elements etc.) | E2: NOK | F2: EN 60204 Section 6.2 | J2: =E2 -> NOK | K2: =IF(J2="NOK",Ausgabe(),"okay") -> 
A3: 7.2 | C3: E | D3: Adequate protection class for the housing. | E3: NOK | F3: EN 60204 Section 6.2 | G3: INFO | H3: IP-Rating - IEC/EN 60529 – NFPA 70 (National Electrical Code) – CEC (Canadian Electrical Code) – UL 50 – CSA-C22.2 No. 94-M91 (2006) – NEMA 250 -20031) | J3: =E3 -> NOK | K3: =IF(J3="NOK",Ausgabe(),"okay") -> 
A4: 7.3 | C4: E | D4: Protection by insulating live parts (e.g. cables) | E4: NOK | F4: EN 60204 Section 6.2 | J4: NOK | K4: =IF(J4="NOK",Ausgabe(),"okay") -> 
A5: 7.4 | C5: E | D5: Protection by covering, providing adequate clearances or barriers. | E5: NOK | F5: EN 60204 Section 6.2 | J5: NOK | K5: =IF(J5="NOK",Ausgabe(),"okay") -> 
A6: 7.5 | B6: J | C6: O/E | D6: Have measures been taken to ensure that only suitably qualified, authorized personnel have access to switchgear cabinets and control rooms? (keys; special tools) | E6: OK | F6: EN 60204 Section 6.2 | J6: OK | K6: =IF(J6="NOK",Ausgabe(),"okay") -> okay
A7: 7.6 | C7: E | D7: Does the machine and/or the electrical installation have protection against indirect contact with electric current in the event of an insulation fault? (e.g. protective circuit, correctly dimensioned protective conductor, protective equipotential bonding of the machine housing, insulation monitoring, equipotential bonding, etc.) | E7: NOK | F7: EN 60204 Section 6.3 | J7: NOK | K7: =IF(J7="NOK",Ausgabe(),"okay") -> 
A8: 7.7 | C8: E | D8: Are there conductive cable runs and cable channels connected to the protective circuit? | E8: OK | J8: OK | K8: =IF(J8="NOK",Ausgabe(),"okay") -> okay
A9: 7.8 | C9: E | D9: Have suitable threaded connections been used to install the cables? | E9: OK | J9: OK | K9: =IF(J9="NOK",Ausgabe(),"okay") -> okay
A10: 7.9 | C10: E | D10: Have cable been secured to withstand tensile forces? (strain relief) | E10: OK | J10: OK | K10: =IF(J10="NOK",Ausgabe(),"okay") -> okay
A11: 7.10 | B11: J | C11: E | D11: Are cable, housing etc are not damaged? | E11: OK | H11: Visual inspection | J11: OK | K11: =IF(J11="NOK",Ausgabe(),"okay") -> okay
A12: Coordinated machines (Production lines)
A13: Direct or indirect contact with electrical energy
A14: 7.11 | C14: E | D14: Interface testing on the connections between the individual machines: Does the entire system have appropriate protective devices between the individual machines to prevent employees from coming into direct or indirect contact with electricity? | E14: NOK | J14: NOK | K14: =IF(J14="NOK",Ausgabe(),"okay") -> 

Sheet 8. Ergonomie (hidden)
A1: 8 | B1: Rel. | C1: Betreiber Mech. Elekt. | D1: Ergonomie | E1: Bewer-tung [Auswahl] | F1: Richtl. / Norm | G1: FAQ | H1: Bemerkungen | I1: Maßnahmen | J1: Bewertung
A2: 8.1 | C2: B | D2: Mindestgröße von Ganzkörperzugängen an Maschinenarbeitsplätzen. Erlauben die Durchgänge innerhalb der Maschine einen ungehinderten und sicheren Zugang zu den Arbeitsplätzen, um Maßnahmen, wie die Betätigung von Stellteilen, das Überwachen von Arbeitsabläufen und das Prüfen von Arbeitsergebnissen, ausführen zu können? | E2: NR | F2: DIN EN 547-1:2009 | J2: =E2 -> NR | K2: =IF(J2="NIO",Ausgabe(),"okay") -> okay
A3: 8.2 | B3: J | C3: B/M | D3: Mindestmaße von Zugangsöffnungen.Sind geeignete Zugangsöffnungen vorgesehen, um das Betätigen von Stellteilen, das Beobachten von Vorgängen sowie Reinigungs-, Rüst- und Wartungsarbeiten zu ermöglichen? | E3: NR | I3: test | J3: =E3 -> NR | K3: =IF(J3="NIO",Ausgabe(),"okay") -> okay
A4: 8.3 | B4: J | C4: B | D4: Arbeitshöhen bei stehender Körperhaltung Sind die Arbeitshöhen für Steharbeitsplätze, die mehr als 1h/Tag genutzt werden, so gewählt, dass sie den Maßen und Kraftanforderungen der Werkstücke entsprechen? | E4: NR | F4: DIN EN ISO 14 738: 2008 | J4: NR | K4: =IF(J4="NIO",Ausgabe(),"okay") -> okay
A5: 8.4 | C5: B | D5: Beinraummaße. Ist der Raumbedarf unter der Arbeitsfläche so bemessen, dass abhängig von der gewählten Arbeitshaltung „Stehen“ oder „Stehen mit Stehhilfe“ ein ausreichender Raum für die Beine verbleibt? | E5: NR | F5: DIN EN ISO 14 738:2008 | J5: NR | K5: =IF(J5="NIO",Ausgabe(),"okay") -> okay
A6: 8.5 | C6: B | D6: Greifraum und Arbeitsraum Können alle Handhabungen und Betätigungen innerhalb des zulässigen Greifraums ausgeführt werden? | E6: NR | I6: test | J6: NR | K6: =IF(J6="NIO",Ausgabe(),"okay") -> okay
A7: 8.6 | C7: B | D7: Sehraum Ist der Sehraum so gewählt, dass bei der Beobachtung der Tätigkeit oder des Prozesses ungünstige Körperhaltungen vermieden werden? | E7: NR | F7: DIN EN 1005-4:2009 DIN EN ISO 14 738:2008 | J7: NR | K7: =IF(J7="NIO",Ausgabe(),"okay") -> okay
A8: 8.7 | C8: B | D8: Vermeidung von extremen Körperhaltungen Werden hohe Bewegungsfrequenzen oder statische Haltungen in ungünstigen oder extremen Körperhaltungen vermieden? | E8: NR | F8: DIN EN 1005-4:2009 | J8: NR | K8: =IF(J8="NIO",Ausgabe(),"okay") -> okay
A9: 8.8 | B9: N | C9: B | D9: Kombinierte Sitz-/Steharbeitsplätze Erfüllt die maßliche Gestaltung der Maschine die Anforderungen an einen Steharbeitsplatz und bietet sie die Möglichkeit der Nutzung eines Stuhls mit erhöhter Sitzposition? | E9: NR | J9: NR | K9: =IF(J9="NIO",Ausgabe(),"okay") -> okay
A10: 8.9 | C10: B | D10: Sitzarbeitsplätze Verfügt der Sitzarbeitsplatz über genügend Raum für freie Körperbewegungen, insbesondere der Beine, Füße und Arme? | E10: NR | F10: DIN EN ISO 14 738:2008 | J10: NR | K10: =IF(J10="NIO",Ausgabe(),"okay") -> okay
A11: 8.10 | C11: B | D11: Sitze Falls die Maschine im Sitzen bedient werden soll und der Bedienplatz fester Bestandteil der Maschine ist, muß die Maschine mit einem Sitz ausgestattet sein. Erfüllt der Sitz die Anforderungen an einen Arbeitsplatz für sitzende Arbeitshaltung? | E11: NR | F11: MRL 2006/42/EG, Anhang 1 | I11: test | J11: NR | K11: =IF(J11="NIO",Ausgabe(),"okay") -> okay
A12: 8.11 | C12: B | D12: Manuelle Handhabung von Gegenständen (Werkstücke, Werkzeuge und Maschinenteile) Sind beim Gebrauch der Maschine infolge manueller Handhabung von Lasten > 3 kg Risiken für den Bediener/Instandhalter verhindert? | E12: NR | F12: DIN EN 1005-2:2009 | J12: NR | K12: =IF(J12="NIO",Ausgabe(),"okay") -> okay
A13: 8.12 | B13: J | C13: B | D13: Aktionskräfte bei Maschinenbetätigung ist verhindert, dass die Häufigkeit, Dauer und Art der Kraftaufwendung an Einrichtungen der Maschine, Schutzeinrichtungen, Zubehör oder Werkzeugen zur Maschinenbedienung oder Instandsetzung ein gesundheitliches Risiko beim Benutzer darstellt? | E13: NR | I13: test | J13: NR | K13: =IF(J13="NIO",Ausgabe(),"okay") -> okay
A14: 8.13 | C14: B | D14: Handgriffe/Eingriffe/Griffe Sind Gegenstände leicht und gefahrlos zu greifen und zu halten? | E14: NR | J14: NR | K14: =IF(J14="NIO",Ausgabe(),"okay") -> okay
A15: 8.14 | C15: B | D15: Kurzzyklische Tätigkeiten bei hohen Handhabungsfrequenzen Können bei der Maschinenbedienung gelegentlich oder häufig (> 1 h/Tag) anfallende, kurzzyklische Tätigkeiten ausgeschlossen werden? | E15: NR | J15: NR | K15: =IF(J15="NIO",Ausgabe(),"okay") -> okay
A16: 8.15 | C16: B | D16: Beleuchtungsstärke, Lichtrichtung, Blendung sind die Arbeitsbereiche der Maschine ausreichend beleuchtet? | E16: NR | F16: DIN EN 1837:2009 | J16: NR | K16: =IF(J16="NIO",Ausgabe(),"okay") -> okay
A17: 8.16 | C17: B/E | D17: Beleuchtungseinrichtung und -installation erfüllt die in die Maschine integrierte Beleuchtungseinrichtung die Bedingungen des Arbeitsbereiches? | E17: NR | J17: NR | K17: =IF(J17="NIO",Ausgabe(),"okay") -> okay
A18: 8.17 | C18: B | D18: Beobachtung des Arbeitszyklus im Fertigungsprozess ist es möglich, den Arbeitszyklus im Fertigungsprozess vom Bedienungsplatz der Maschine aus zu beobachten? | E18: NR | F18: MRL 2006/42/EG, Anhang 1 | J18: NR | K18: =IF(J18="NIO",Ausgabe(),"okay") -> okay
B19: =COUNTIFS('8. Ergonomie'!$B$2:$B$18,"J") -> 3 | K19: =IF(J19="NIO",Ausgabe(),"okay") -> okay

Sheet FAQ
A2: FAQ
A4: Nr. | B4: Inhalt
A5: 1.1 | B5: All machinery must be marked visibly, legibly and indelibly with the following minimum particulars: — the business name and full address of the manufacturer and, where applicable, his authorised representative, — designation of the machinery, — the CE Marking (see Annex III), — designation of series or type, — serial number, if any, — the year of construction, that is the year in which the manufacturing process is completed.
A6: 1.2 | B6: All machinery must be accompanied by instructions in the official Community language or languages of the Member State in which it is placed on the market and/or put into service. The instructions accompanying the machinery must be either ‘Original instructions’ or a ‘Translation of the original instructions’, in which case the translation must be accompanied by the original instructions.
A7: 1.3 | B7: k.A.
A8: 1.4 | B8: Each instruction manual must contain, where applicable, at least the following information: (a) the business name and full address of the manufacturer and of his authorised representative; (b) the designation of the machinery as marked on the machinery itself, except for the serial number (see section 1.7.3); (c) the EC declaration of conformity, or a document setting out the contents of the EC declaration of conformity, showing the particulars of the machinery, not necessarily including the serial number and the signature;
A9: 1.5 | B9: (d) a general description of the machinery; (e) the drawings, diagrams, descriptions and explanations necessary for the use, maintenance and repair of the machinery and for checking its correct functioning;
A10: 1.6 | B10: k.A.
A11: 1.7 | B11: k.A.
A12: 1.8 | B12: k.A.
A13: 1.9 | B13: (g) a description of the intended use of the machinery;
A14: 1.10 | B14: (l) information about the residual risks that remain despite the inherent safe design measures, safeguarding and complementary protective measures adopted;
A15: 1.11 | B15: The machine must be designed and built in such a way as to ensure that risks arising from airborne noise emissions are reduced to the maximum extent permitted by the current state of the art using the means of reducing noise that are available, particularly at the source. (u) the following information on airborne noise emissions: — the A-weighted emission sound pressure level at workstations, where this exceeds 70 dB(A); where this level does not exceed 70 dB(A), this fact must be indicated, — the peak C-weighted instantaneous sound pressure value at workstations, where this exceeds 63 Pa (130 dB in relation to 20 μPa); — the A-weighted sound power level emitted by the machinery, where the A-weighted emission sound pressure level at workstations exceeds 80 dB(A).
A16: 1.12 | B16: (h) warnings concerning ways in which the machinery must not be used that experience has shown might occur; Where risks remain despite the inherent safe design measures, safeguarding and complementary protective measures adopted, the necessary warnings, including warning devices, must be provided.
A17: 1.13 | B17: Provided by the owner
A18: 1.14 | B18: Provided by the owner
A19: 1.15 | B19: Provided by the owner
A20: 1.16 | B20: k.A.
A21: 2.1 | B21: refer to 1.9
A22: 2.2 | B22: Pay attention to the information given in the operating manual.
A23: 2.3 | B23: Pay attention to the information given in the operating manual (technical data, circuit diagram).
A24: 2.4 | B24: The employer shall take all measures to ensure that appropriate lighting is available when using the work equipment. ISO 60204 section 17.2. e.g.: traffic ways and general: 100 lx; workplaces: 200 lx; control stations, maintenance: 300 lx; work requiring better visibility: 500 lx;
A25: 2.5 | B25: Areas and points for working on, or repair and maintenance of, work equipment must be suitably lit in line with the operation to be carried out.
A26: 2.6 | B26: Machinery and its components and fittings must be stable enough to avoid overturning, falling or uncontrolled movements during transportation, assembly, dismantling and any other action involving the machinery. If the shape of the machinery itself or its intended installation does not offer sufficient stability, appropriate means of anchorage must be incorporated and indicated in the instructions.
A27: 2.7 | B27: Visual inspection
A28: 3.1 | B28: — Power-up prerequisites in the logic prevent activation of potentially hazardous movements.
A29: 3.2 | B29: — Power-up prerequisites in the logic prevent activation of the machine.
A30: 3.3 | B30: — e.g. an acknowledgement prompt prevents machine parameters (e.g. setpoint values) being changed inadvertently.
A31: 3.4 | B31: — the machinery must not be prevented from stopping if the stop command has already been given
A32: 3.5 | B32: — no moving part of the machinery or piece held by the machinery may fall or be ejected
A33: 3.6 | B33: — automatic or manual stopping of the moving parts, whatever they may be, must be unimpeded
A34: 3.7 | B34: Control devices must be clearly visible and identifiable, using pictograms where appropriate
A35: 3.8 | B35: Control devices must be positioned in such a way as to be safely operated without hesitation or loss of time and without ambiguity
A36: 3.9 | B36: Control devices must be located outside the danger zones, except where necessary for certain control devices such as an emergency stop or a teach pendant ;
A37: 3.10 | B37: From each control position, the operator must be able to ensure that no-one is in the danger zones
A38: 3.11 | B38: or the control system must be designed and constructed in such a way that starting is prevented while someone is in the danger zone.
A39: 3.12 | B39: If neither of these possibilities is applicable, before the machinery starts, an acoustic and/or visual warning signal must be given.
A40: 3.13 | B40: k.A.
A41: 3.14 | B41: k.A.
A42: 3.15 | B42: The exposed persons must have time to leave the danger zone or prevent the machinery starting up.
A43: 3.16 | B43: Where there is more than one control position, the control system must be designed in such a way that the use of one of them precludes the use of the others, except for stop controls and emergency stops.
A44: 3.17 | B44: k.A.
A45: 3.18 | B45: k.A.
A46: 3.19 | B46: k.A.
A47: 3.20 | B47: k.A.
A48: 3.21 | B48: Machinery must be fitted with a control device whereby the machinery can be brought safely to a complete stop. Each workstation must be fitted with a control device to stop some or all of the functions of the machinery, depending on the existing hazards, so that the machinery is rendered safe. Once the machinery or its hazardous functions have stopped, the energy supply to the actuators concerned must be cut off.
A49: 3.22 | B49: k.A.
A50: 3.23 | B50: Machinery must be fitted with means to isolate it from all energy sources. Such isolators must be clearly identified. They must be capable of being locked if reconnection could endanger persons. Isolators must also be capable of being locked where an operator is unable, from any of the points to which he has access, to check that the energy is still cut off.
A51: 3.24 | B51: k.A.
A52: 3.25
A53: 3.26 | B53: k.A.
A54: 3.27 | B54: k.A.
A55: 3.28 | B55: Every machine must be fitted with one or more emergency stop devices, which offer a means of averting an actual or impending danger. The following exceptions apply: — machinery in which an emergency stop device would not lessen the risk, either because it would not reduce the stopping time or because it would not enable the special measures required to deal with the risk to be taken, — portable hand-held and/or hand-guided machinery. The emergency stop device must — have clearly identifiable, clearly visible and quickly accessible control devices, — stop the hazardous process as quickly as possible, without creating additional risks, — where necessary, trigger or permit the triggering of certain safeguard movements. Once active operation of the emergency stop device has ceased following a stop command, that command must be sustained by engagement of the emergency stop device until that engagement is specifically overridden; it must not be possible to engage the device without triggering a stop command; it must be possible to disengage the device only by an appropriate operation, disengaging the device must not restart the machinery but only permit restarting. The emergency stop function must be available and operational at all times, regardless of the operating mode. Emergency stop devices must be a back-up to other safeguarding measures and not a substitute for them.
A56: 3.29 | B56: k.A.
A57: 3.30 | B57: k.A.
A58: 3.31 | B58: k.A.
A59: 3.32 | B59: k.A.
A60: 3.33 | B60: k.A.
A61: 3.34 | B61: k.A.
A62: 3.35 | B62: k.A.
A63: 3.36 | B63: k.A.
A64: 4.1 | B64: The various parts of machinery and their linkages must be able to withstand the stresses to which they are subject when used. Where a risk of rupture or disintegration remains despite the measures taken, the parts concerned must be mounted, positioned and/or guarded in such a way that any fragments will be contained, preventing hazardous situations.
A65: 4.2 | B65: Both rigid and flexible pipes carrying fluids, particularly those under high pressure, must be able to withstand the foreseen internal and external stresses and must be firmly attached and/or protected to ensure that no risk is posed by a rupture.
A66: 4.3 | B66: k.A.
A67: 4.4 | B67: Precautions must be taken to prevent risks from falling or ejected objects. When a part of the machinery has been stopped, any drift away from the stopping position, for whatever reason other than action on the control devices, must be prevented or must be such that it does not present a hazard.
A68: 4.5 | B68: Insofar as their purpose allows, accessible parts of the machinery must have no sharp edges, no sharp angles and no rough surfaces likely to cause injury.
A69: 4.6 | B69: The moving parts of machinery must be designed and constructed in such a way as to prevent risks of contact which could lead to accidents or must, where risks persist, be fitted with guards or protective devices. The instructions and, where possible, a sign on the machinery shall identify these specific protective devices and how they are to be used. Guards or protective devices designed to protect against risks arising from moving parts must be selected on the basis of the type of risk.
A70: 4.7 | B70: Visual inspection
A71: 4.8 | B71: The durability of the materials used must be adequate for the nature of the working environment foreseen by the manufacturer or his authorised representative, in particular as regards the phenomena of fatigue, ageing, corrosion and abrasion. Where a risk of rupture or disintegration remains despite the measures taken, the parts concerned must be mounted, positioned and/or guarded in such a way that any fragments will be contained, preventing hazardous situations.
A72: 4.9 | B72: If it is necessary to observe machine operation through the safety guard, materials with suitable properties must be selected, e.g. material of an appropriate color with holes of a suitable size for looking through must be chosen if perforated material or wire mesh is used. Visibility can be improved by using perforated material of a darker color than the area under observation.
A73: 4.10 | B73: Guards and safety devices must be designed in such a way as to ensure that they do not produce any hazardous crushing points or traps in conjunction with other parts of the machine or other guards or safety devices (also refer to EN 349). Guards and protective devices must: — not give rise to any additional hazard,
A74: 4.11 | B74: Guards and protective devices must: — not give rise to any additional hazard, — be securely held in place,
A75: 4.12 | B75: — not be easy to by-pass or render non-operational,
A76: 4.13 | B76: Purpose of the safety bolts: It must not be possible to disassemble guards or safety devices without using special, dedicated tools, fitting only to these safety bolts.
A77: 4.14 | B77: Fixed guards must be fixed by systems that can be opened or removed only with tools. Their fixing systems must remain attached to the guards or to the machinery when the guards are removed. Where possible, guards must be incapable of remaining in place without their fixings.
A78: 4.15 | B78: A: around U: under T: through O: over
A79: 4.16 | B79: k.A.
A80: 4.17 | B80: Interlocking movable guards must: — as far as possible remain attached to the machinery when open, — be designed and constructed in such a way that they can be adjusted only by means of an intentional action.
A81: 4.18 | B81: Machines produced up to and including 12-2011 can still be assessed in accordance with EN 954 (control system category). EN ISO 13849, IEC 61508 or EN 62061 must be applied to machines built after this date. nterlocking movable guards must be designed in such a way that the absence or failure of one of their components prevents starting or stops the hazardous machinery functions.
A82: 4.19 | B82: Where it is possible for an operator to reach the danger zone before the risk due to the hazardous machinery functions has ceased, movable guards must be associated with a guard locking device in addition to an interlocking device.
A83: 4.20 | B83: Powered guards and safety devices may not cause any injury (e.g. caused by closing pressure, force, speed, sharp edges). If a guard is equipped with a protective device that causes the guard to open again automatically as soon as a person or object comes into contact with the guard, the force required to prevent the guard closing shall not amount to more than 150 N. The kinetic energy of the guard shall not amount to more than 10 J. If a protective device of this nature is not fitted, these values must be reduced to to 75 N and 4 J accordingly.
A84: 4.21 | B84: The determined data must be documented in the manufacturer's operating manual as a minimum requirement.
A85: 4.22 | B85: k.A.
A86: 4.23 | B86: k.A.
A87: 4.24 | B87: k.A.
A88: 4.25 | B88: k.A.
A89: 4.26 | B89: The monitoring system may only exclude the space actually occupied by the operator's body. Guards and safety devices must be provided for all other parts of the machine (front, side and rear)!
A90: 4.27 | B90: Check the distances (e.g. using a hand, an arm and another part of the body or a tool, etc. for operator control)
A91: 4.28 | B91: k.A.
A92: 4.29 | B92: k.A.
A93: 4.30 | B93: e.g. with an inspection sticker on the machine or in the documentation for the machine.
A94: 5.1 | B94: Guards and safety devices must be provided for parts of equipment that are very hot or very cold to prevent personnel coming into contact with such parts or coming into dangerously close proximity to them.
A95: 5.2 | B95: Steps must be taken to eliminate any risk of injury arising from contact with or proximity to machinery parts or materials at high or very low temperatures.
A96: 5.3 | B96: The necessary steps must also be taken to avoid or protect against the risk of hot or very cold material being ejected.
A97: 5.4 | B97: Machinery must be designed and constructed in such a way that risks of inhalation, ingestion, contact with the skin, eyes and mucous membranes and penetration through the skin of hazardous materials and substances which it produces can be avoided.Where a hazard cannot be eliminated, the machinery must be so equipped that hazardous materials and substances can be contained, evacuated, precipitated by water spraying, filtered or treated by another equally effective method. Where the process is not totally enclosed during normal operation of the machinery, the devices for containment and/or evacuation must be situated in such a way as to have the maximum effect.
A98: 5.5 | B98: Parts of the machinery where persons are liable to move about or stand must be designed and constructed in such a way as to prevent persons slipping, tripping or falling on or off these parts.
A99: 5.6 | B99: Where appropriate, these parts must be fitted with handholds that are fixed relative to the user and that enable them to maintain their stability.
A100: 6.1 | B100: Machinery must be so designed, constructed and equipped that the need for operator intervention is limited. If operator intervention cannot be avoided, it must be possible to carry it out easily and safely.
A101: 6.2 | B101: A safe means of accessing all of the necessary areas must be provided to perform production, setting, repair and maintenance work on equipment. It must be possible to be in these areas without being exposed to any danger.
A102: 6.3 | B102: It must be possible to perform repair and maintenance work with the equipment at a standstill. If this is not possible, it must be possible to implement appropriate safety measures to perform the work, or it must be possible to perform the repair and maintenance work outside the danger zone.
A103: 6.4 | B103: If it is necessary to perform repair and maintenance work under raised loads or working equipment, it must be possible to secure them and prevent them falling by means of appropriate facilities.
A104: 6.5 | B104: If energy may still be stored in systems with storage capacity when the equipment has been disconnected from all energy sources, facilities must be available that are capable of de-energizing such systems. These facilities must be marked accordingly. If it is not possible to de-energize a system completely, appropriate hazard warnings must be provided on the equipment.
A105: 6.6 | B105: see 6.5
A106: 6.7 | B106: see 6.5
A107: 6.8 | B107: k.A.
A108: 6.9 | B108: k.A.
A109: 7.1 | B109: k.A.
A110: 7.2 | B110: IP-Klasse - IEC/EN 60529 oder – NFPA 70 (National Electrical Code) – CEC (Canadian Electrical Code) – UL 50 – CSA-C22.2 No. 94-M91 (2006) – NEMA 250 -20031)
A111: 7.3 | B111: k.A.
A112: 7.4 | B112: k.A.
A113: 7.5 | B113: k.A.
A114: 7.6 | B114: k.A.
A115: 7.7 | B115: k.A.
A116: 7.8 | B116: k.A.
A117: 7.9 | B117: k.A.
A118: 7.10 | B118: k.A.
A119: 8.1 | B119: k.A.
A120: 8.2 | B120: k.A.
A121: 8.3 | B121: k.A.
A122: 8.4 | B122: k.A.
A123: 8.5 | B123: k.A.
A124: 8.6 | B124: k.A.
A125: 8.7 | B125: k.A.
A126: 8.8 | B126: k.A.
A127: 8.9 | B127: k.A.
A128: 8.10 | B128: k.A.
A129: 8.11 | B129: k.A.
A130: 8.12 | B130: k.A.
A131: 8.13 | B131: k.A.
A132: 8.14 | B132: k.A.
A133: 8.15 | B133: k.A.
A134: 8.16 | B134: k.A.
A135: 8.17 | B135: k.A.

Sheet D 02-044 PL (hidden)
A1: D 02-044 – Annex 2 | M1: Version: 1 | P1: INFO ZU PL
A2: Documentation Performance Level (PL) | M2: Valid from: 1st January 2017
A4: Machine: | H4: Date:
A6: Name / Signature:
A8: Risk | B8: Safety device (e.g. interlocked protective device, light curtain, etc.) | C8: Operation mode | D8: Risk Assessment (EN ISO 13849) | H8: Performance Level Estimation (EN ISO 13849) | M8: Remaining risk | O8: Measures
D9: S Severity | E9: F Frequency | F9: P Possibility of avoidance | G9: PLr | H9: Cat. | I9: DC | J9: MTTFD | K9: PL | L9: ∑ PL/ achieved | N9: accepted yes / no
